{"text_format":"1","workbook":"xlsx","n_sheets":39,"sheets":["Indice","Glossário","Nota Introdutória","GRÁFICO01","QUADRO01 - CONTINENTE","QUADRO01 - MADEIRA","GRÁFICO02","GRÁFICO03","GRÁFICO04","QUADRO02 - CONTINENTE","QUADRO02 - MADEIRA","QUADRO03 - CONTINENTE","QUADRO03 - MADEIRA","QUADRO04 - CONTINENTE","QUADRO04 - MADEIRA","QUADRO05 - CONTINENTE","QUADRO05 - MADEIRA","QUADRO06","QUADRO07","GRÁFICO05","GRÁFICO06","GRÁFICO07","GRÁFICO08","QUADRO08 - CONTINENTE","QUADRO08 - MADEIRA","QUADRO09","QUADRO10","QUADRO11","QUADRO12","QUADRO13","QUADRO14","QUADRO15","GRÁFICO25","QUADRO16","QUADRO17","QUADRO18","QUADRO19","QUADRO20E21","QUADRO22"],"not_rendered":{"charts":32,"images":2,"macros":1,"external_links":0,"defined_names":46,"comments":0,"pivot_tables":0},"unopened":[],"bounds":{"document_bytes":16777216,"sheet_cells":100000,"rows_first":2000,"rows_last":500,"rows_between":2000,"halvings":0,"cell_chars":16384,"cell_head_chars":4096},"cells_cut":0,"cells_raw":0,"read":"whole","date_system":"1900"}

{"sheet":"Indice","index":0,"n_rows":123,"n_cols":5,"rows_kept":123,"cut":false,"hidden":false,"merged":[[102,1,114,1],[118,1,122,1],[4,1,98,1],[10,3,12,3],[24,3,26,3],[28,3,30,3],[32,3,34,3],[36,3,38,3],[52,3,54,3],[14,3,16,3],[18,3,20,3]]}
[]
[null,"SÍNTESE ESTATÍSTICA CANDIDATURAS 2017"]
[null,"PEDIDO ÚNICO, ATENDIMENTOS DO PARCELÁRIO E FORMULÁRIOS IB"]
[]
[null,"CANDIDATURAS\nPU 2017",null,{"$f":"Glossário!B4","v":"GLOSSÁRIO DE SIGLAS"}]
[]
[null,null,null,{"$f":"'Nota Introdutória'!C4","v":"NOTA INTRODUTÓRIA"}]
[]
[null,null,null,{"$f":"GRÁFICO01!AA1","v":"GRÁFICO 1 - NÚMERO DE CANDIDATURAS PU2017/PU2016"}]
[]
[null,null,null,{"$f":"'QUADRO01 - CONTINENTE'!A1","v":"QUADRO 1 - NÚMERO DE CANDIDATURAS, ÁREAS E ANIMAIS DECLARADOS, POR AJUDA/APOIO - PU2017/PU2016"},{"$f":"'QUADRO01 - CONTINENTE'!A2","v":"CONTINENTE"}]
[]
[null,null,null,null,{"$f":"'QUADRO01 - MADEIRA'!A2","v":"MADEIRA"}]
[]
[null,null,null,{"$f":"GRÁFICO02!AB1","v":"GRÁFICO 2 - N.º DE CANDIDATURAS, POR AJUDA / APOIO - PU2017/PU2016"},{"$f":"GRÁFICO02!$AD$1","v":"CONTINENTE"}]
[]
[null,null,null,null,{"$f":"GRÁFICO02!$AD$2","v":"MADEIRA"}]
[]
[null,null,null,{"$f":"GRÁFICO03!AB1","v":"GRÁFICO 3 - ÁREAS (HA), POR AJUDA / APOIO - PU2017/PU2016"},{"$f":"GRÁFICO03!$AD$1","v":"CONTINENTE"}]
[]
[null,null,null,null,{"$f":"GRÁFICO03!$AD$2","v":"MADEIRA"}]
[]
[null,null,null,{"$f":"GRÁFICO04!AA1","v":"GRÁFICO 4 - MAA - ANIMAIS (CN) DECLARADOS - PU2017/PU2016"}]
[]
[null,null,null,{"$f":"'QUADRO02 - CONTINENTE'!A1","v":"QUADRO 2 - NÚMERO DE CANDIDATURAS E ÁREAS (HA) DECLARADAS, POR CULTURA - PU2017"},{"$f":"'QUADRO02 - CONTINENTE'!A2","v":"CONTINENTE"}]
[]
[null,null,null,null,{"$f":"'QUADRO02 - MADEIRA'!A2","v":"MADEIRA"}]
[]
[null,null,null,{"$f":"'QUADRO03 - CONTINENTE'!A1","v":"QUADRO 3 - ÁREAS (HA) DOS CEREAIS POR VARIEDADE / FINALIDADE - PU2017"},{"$f":"'QUADRO03 - CONTINENTE'!A3","v":"CONTINENTE"}]
[]
[null,null,null,null,{"$f":"'QUADRO03 - MADEIRA'!A3","v":"MADEIRA"}]
[]
[null,null,null,{"$f":"'QUADRO04 - CONTINENTE'!A1","v":"QUADRO 4 - ÁREAS (HA) DOS HORTÍCOLAS POR FINALIDADE - PU2017"},{"$f":"'QUADRO04 - CONTINENTE'!A2","v":"CONTINENTE"}]
[]
[null,null,null,null,{"$f":"'QUADRO04 - MADEIRA'!A2","v":"MADEIRA"}]
[]
[null,null,null,{"$f":"'QUADRO05 - CONTINENTE'!A1","v":"QUADRO 5 - ÁREAS (HA) DE OLIVAL E VINHA POR VARIEDADE / FINALIDADE - PU2017"},{"$f":"'QUADRO05 - CONTINENTE'!A2","v":"CONTINENTE"}]
[]
[null,null,null,null,{"$f":"'QUADRO05 - MADEIRA'!A2","v":"MADEIRA"}]
[]
[null,null,null,{"$f":"QUADRO06!A1","v":"QUADRO 6 - N.º DE CANDIDATURAS E ÁREAS (HA) DECLARADAS, POR CULTURA RPB - PU2017"}]
[]
[null,null,null,{"$f":"QUADRO07!A1","v":"QUADRO 7 - N.º DE CANDIDATURAS E ÁREAS (HA) DECLARADAS, POR CULTURA RPA - PU2017"}]
[]
[null,null,null,{"$f":"GRÁFICO05!AA1","v":"GRÁFICO 5 - TRANSFERÊNCIAS - N.º DE COMUNICAÇÕES (MODELO T) - PU2017"}]
[]
[null,null,null,{"$f":"GRÁFICO06!AA1","v":"GRÁFICO 6 - TRANSFERÊNCIAS - DIREITOS/ÁREA (HA) (MODELO T) - PU2017"}]
[]
[null,null,null,{"$f":"GRÁFICO07!AA4","v":"GRÁFICO 7 - TRANSFERÊNCIAS - N.º DE COMUNICAÇÕES POR TIPO (MODELO T) - PU2017"}]
[]
[null,null,null,{"$f":"GRÁFICO08!AA4","v":"GRÁFICO 8 -  TRANSFERÊNCIAS - DIREITOS POR TIPO (MODELO T) - PU2017"}]
[]
[null,null,null,{"$f":"'QUADRO08 - CONTINENTE'!A1","v":"QUADRO 8 - N.º DE CANDIDATURAS, ÁREAS (HA) E ANIMAIS DECLARADOS, POR MEDIDA MAA - PU2017"},{"$f":"'QUADRO08 - CONTINENTE'!A3","v":"CONTINENTE"}]
[]
[null,null,null,null,{"$f":"'QUADRO08 - MADEIRA'!A3","v":"MADEIRA"}]
[]
[null,null,null,{"$f":"QUADRO09!A1","v":"QUADRO 9 - N.º DE CANDIDATURAS PU E POR REGIÃO - PU2017/PU2016"}]
[]
[null,null,null,{"$f":"QUADRO09!AA1","v":"GRÁFICO 9 - NÚMERO DE CANDIDATURAS PU, POR REGIÃO - PU2017"}]
[]
[null,null,null,{"$f":"QUADRO09!AA2","v":"GRÁFICO 10 - NÚMERO DE CANDIDATURAS PU, POR REGIÃO - PU2016"}]
[]
[null,null,null,{"$f":"QUADRO10!A1","v":"QUADRO 10 - N.º DE CANDIDATURAS RPB, ÁREA (HA) E POR REGIÃO - PU2017"}]
[]
[null,null,null,{"$f":"QUADRO10!AA1","v":"GRÁFICO 11 - NÚMERO DE CANDIDATURAS RPB, POR REGIÃO - PU2017"}]
[]
[null,null,null,{"$f":"QUADRO10!AA2","v":"GRÁFICO 12 - ÁREA RPB, POR REGIÃO - PU2017"}]
[]
[null,null,null,{"$f":"QUADRO11!A1","v":"QUADRO 11 - N.º DE CANDIDATURAS RPA, ÁREA (HA), POR REGIÃO - PU2017"}]
[]
[null,null,null,{"$f":"QUADRO11!AA1","v":"GRÁFICO 13 - NÚMERO DE CANDIDATURAS RPA, POR REGIÃO - PU2017"}]
[]
[null,null,null,{"$f":"QUADRO11!AA2","v":"GRÁFICO 14 - ÁREA RPA, POR REGIÃO - PU2017"}]
[]
[null,null,null,{"$f":"QUADRO12!A1","v":"QUADRO 12 - N.º DE CANDIDATURAS MZD, ÁREA (HA) E POR REGIÃO - PU2017/PU2016"}]
[]
[null,null,null,{"$f":"QUADRO12!AA1","v":"GRÁFICO 15 - NÚMERO DE CANDIDATURAS MZD, POR REGIÃO - PU2017"}]
[]
[null,null,null,{"$f":"QUADRO12!AA2","v":"GRÁFICO 16 - ÁREA MZD, POR REGIÃO - PU2017"}]
[]
[null,null,null,{"$f":"QUADRO12!AA3","v":"GRÁFICO 17 - NÚMERO DE CANDIDATURAS MZD, POR REGIÃO - PU2016"}]
[]
[null,null,null,{"$f":"QUADRO12!AA4","v":"GRÁFICO 18 - ÁREA MZD, POR REGIÃO - PU2016"}]
[]
[null,null,null,{"$f":"QUADRO13!A1","v":"QUADRO 13 - N.º DE CANDIDATURAS MAA, ÁREA (HA) E ANIMAIS (CN), POR REGIÃO - PU2017/PU2016"}]
[]
[null,null,null,{"$f":"QUADRO13!AA1","v":"GRÁFICO 19 - NÚMERO DE CANDIDATURAS MAA, POR REGIÃO - PU2017"}]
[]
[null,null,null,{"$f":"QUADRO13!AA2","v":"GRÁFICO 20 - ÁREA MAA, POR REGIÃO - PU2017"}]
[]
[null,null,null,{"$f":"QUADRO13!AA3","v":"GRÁFICO 21 - ANIMAIS MAA, POR REGIÃO - PU2017"}]
[]
[null,null,null,{"$f":"QUADRO13!AA4","v":"GRÁFICO 22 - NÚMERO DE CANDIDATURAS MAA, POR REGIÃO - PU2016"}]
[]
[null,null,null,{"$f":"QUADRO13!AA5","v":"GRÁFICO 23 - ÁREA MAA, POR REGIÃO - PU2016"}]
[]
[null,null,null,{"$f":"QUADRO13!AA6","v":"GRÁFICO 24 - ANIMAIS MAA, POR REGIÃO - PU2016"}]
[]
[null,null,null,{"$f":"QUADRO14!B1","v":"QUADRO 14 - N.º DE CANDIDATURAS PU POR ENTIDADE RECETORA - PU2017/PU2016"}]
[]
[]
[]
[null,"ATENDIMENTOS DO\nPARCELÁRIO\nEM 2017",null,{"$f":"QUADRO15!A1","v":"QUADRO 15 - Nº DE ATENDIMENTOS DE PARCELÁRIO, NO PERÍODO DE CANDIDATURAS DO PU2017, POR ENTIDADE (ACUMULADO)"}]
[]
[null,null,null,{"$f":"GRÁFICO25!AA1","v":"GRÁFICO 25 - DISTRIBUIÇÃO DO ATENDIMENTO DO PARCELÁRIO, POR ENTIDADE (ACUMULADO) - PU2017"}]
[]
[null,null,null,{"$f":"QUADRO16!A1","v":"QUADRO 16 - Nº DE ATENDIMENTOS DE PARCELÁRIO, NO PERÍODO DE CANDIDATURAS, POR ENTIDADE - PU2017/PU2017"}]
[]
[null,null,null,{"$f":"QUADRO17!A1","v":"QUADRO 17 - COMPARAÇÃO DO Nº DE ATENDIMENTOS DE PARCELÁRIO, NO PERÍODO DE CANDIDATURAS - PU2017/PU2016"}]
[]
[null,null,null,{"$f":"QUADRO17!AA1","v":"GRÁFICO 26 - COMPARAÇÃO DO N.º DE ATENDIMENTOS DO PARCELÁRIO - PU2017/PU2016"}]
[]
[null,null,null,{"$f":"QUADRO18!A1","v":"QUADRO 18 - TIPOS DE AÇÕES EFETUADAS NAS PARCELAS (ACUMULADO) - PU2017"}]
[]
[null,null,null,{"$f":"QUADRO19!A1","v":"QUADRO 19 - VISITAS DE CAMPO PARCELÁRIO NO PERÍODO DE 01-03-2017 A 26-06-2017 (ACUMULADO)"}]
[]
[]
[]
[null,"FORMULÁRIOS\nIB 2017",null,{"$f":"QUADRO20E21!A1","v":"QUADRO 20 - UTILIZADORES E FORMULÁRIOS IB (ACUMULADO), NO PERÍODO DE CANDIDATURAS - PU2017"}]
[]
[null,null,null,{"$f":"QUADRO20E21!A14","v":"QUADRO 21 - FORMULÁRIOS IB TIPO DE ALTERAÇÕES (ACUMULADO) - PU2017"}]
[]
[null,null,null,{"$f":"QUADRO22!A1","v":"QUADRO 22 - FORMULÁRIOS IB POR ENTIDADE (ACUMULADO), NO PERÍODO DE CANDIDATURAS PU2017"}]

{"sheet":"Glossário","index":1,"n_rows":23,"n_cols":29,"rows_kept":23,"cut":false,"hidden":false,"merged":[]}
[null,null,null,null,null,null,null,null,null,null,null,null,null,null,null,null,null,null,null,null,null,null,null,null,null,null,null,null,"Gráfico 01 - Número de Candidaturas por Ano"]
[]
[]
[null,"GLOSSÁRIO DE SIGLAS"]
[]
[null,"AG-MAR2020","AUTORIDADE DE GESTÃO DO PROGRAMA OPERACIONAL MAR2020"]
[null,"AJAP","ASSOCIAÇÃO DE JOVENS AGRICULTORES DE PORTUGAL"]
[null,"MAA","MEDIDAS AGRO-AMBIENTAIS"]
[null,"CAP","CONFEDERAÇÃO DOS AGRICULTORES DE PORTUGAL"]
[null,"CNA","CONFEDERAÇÃO NACIONAL DA AGRICULTURA"]
[null,"CNJ","CONFEDERAÇÃO NACIONAL DOS JOVENS AGRICULTORES E DO DESENVOLVIMENTO RURAL"]
[null,"CONFAGRI","CONFEDERAÇÃO NACIONAL DAS COOPERATIVAS AGRÍCOLAS E DO CRÉDITO AGRÍCOLA DE PORTUGAL"]
[null,"DGAV","DIREÇÃO-GERAL DE ALIMENTAÇÃO E VETERINÁRIA"]
[null,"DRACA","DIREÇÃO REGIONAL DOS ASSUNTOS COMUNITÁRIOS DA AGRICULTURA"]
[null,"DRADR","DIREÇÃO REGIONAL DA AGRICULTURA E DESENVOLVIMENTO RURAL"]
[null,"DRAP","DIREÇÕES REGIONAIS DE AGRICULTURA E PESCAS"]
[null,"IB","IDENTIFICAÇÃO DO BENEFICIÁRIO"]
[null,"MZD","MANUTENÇÃO DA ATIVIDADE AGRÍCOLA"]
[null,"PJA","PAGAMENTOS PARA OS JOVENS AGRICULTORES"]
[null,"PRODER","PROGRAMA DE DESENVOLVIMENTO RURAL DO CONTINENTE 07-13"]
[null,"PU","PEDIDO ÚNICO"]
[null,"RPA","REGIME DA PEQUENA AGRICULTURA"]
[null,"RPB","REGIME DE PAGAMENTO BASE"]

{"sheet":"Nota Introdutória","index":2,"n_rows":7,"n_cols":28,"rows_kept":7,"cut":false,"hidden":false,"merged":[]}
[null,null,null,null,null,null,null,null,null,null,null,null,null,null,null,null,null,null,null,null,null,null,null,null,null,null,null,"Gráfico 01 - Número de Candidaturas por Ano"]
[]
[]
[null,null,"NOTA INTRODUTÓRIA"]
[]
[]
[null,null,"O presente documento tem como objetivo a divulgação de uma síntese da informação relativa às candidaturas ao Pedido Único (PU), aos Atendimentos do Parcelário e aos Formulários de Identificação do Beneficiário, em 2017.\n\nNo período em análise a receção de candidaturas teve início em 01-03-2017.\n\nA informação apresentada corresponde às candidaturas carregadas no sistema informático central do IFAP no final do período de candidaturas em 26-06-2017.\n\nQuando possível, é apresentada a comparação entre os dados de 2017 e os de 2016, sendo que para 2016, o início do período de receção de candidaturas verificou-se no dia 15-02-2016 e o final no dia 11-07-2016.\n\nO apuramento da informação teve como base, no caso das candidaturas do PU, as seguintes variáveis: (i) número de candidaturas rececionadas por ajuda e respetivas áreas e animais candidatos; (ii) número de candidaturas rececionadas por região; (iii) número de candidaturas rececionadas por entidade recetora.\n\nInclui-se, também, informação relativa a transferências: (i) número e respetiva área e (ii) por tipo de transferência. \n\nNo caso dos Atendimentos do Parcelário, as variáveis consideradas foram: (i) número de atendimentos do parcelário por entidade recetora; (ii) tipo de ações e (iii) númerio de visitas de campo.\n\nNo que respeita aos Formulários de Identificação do Beneficiário foram analisados (i) número de utilizadores e formulários submetidos; (ii) tipo de alterações; (iii) número de formulários rececionados por entidade recetora."]

{"sheet":"GRÁFICO01","index":3,"n_rows":1,"n_cols":27,"rows_kept":1,"cut":false,"hidden":false,"merged":[]}
[null,null,null,null,null,null,null,null,null,null,null,null,null,null,null,null,null,null,null,null,null,null,null,null,null,null,"GRÁFICO 1 - NÚMERO DE CANDIDATURAS PU2017/PU2016"]

{"sheet":"QUADRO01 - CONTINENTE","index":4,"n_rows":28,"n_cols":15,"rows_kept":28,"cut":false,"hidden":false,"merged":[[21,0,21,1],[22,0,22,1],[13,0,13,1],[14,0,14,1],[15,0,15,1],[18,0,18,1],[19,0,19,1],[20,0,20,1],[12,0,12,1],[4,8,5,8],[4,9,5,9],[4,10,5,10],[4,12,5,12],[7,0,7,1],[8,0,8,1],[9,0,9,1],[10,0,10,1],[11,0,11,1],[4,13,5,13],[4,14,5,14],[0,0,0,14],[2,0,6,1],[2,3,2,6],[2,8,2,10],[2,12,2,14],[3,3,3,4],[4,3,5,3],[4,4,5,4],[4,5,5,5],[4,6,5,6]]}
["QUADRO 1 - NÚMERO DE CANDIDATURAS, ÁREAS E ANIMAIS DECLARADOS, POR AJUDA/APOIO - PU2017/PU2016"]
["CONTINENTE"]
["AJUDA / APOIO",null,null,"Campanha 2017*",null,null,null,null,"Campanha 2016*",null,null,null,"Comparação 2017/2016"]
[null,null,null,"Candidaturas ",null,"Área","Animais**",null,"Candidaturas ","Área","Animais**",null,"Candidaturas ","Área","Animais"]
[null,null,null,"(nº)","% Ajuda/Apoio no Total de PU"," (ha)"," (cn)",null,"(nº)"," (ha)"," (cn)",null,"(nº)"," (ha)"," (cn)"]
[]
[null,null,null,"[1]","[2]","[3]","[4]",null,"[5]","[6]","[7]",null,"[8] = [1]/[5]","[9] = [3]/[6]","[10] = [4]/[7]"]
["RPB - Regime de Pagamento Base",null,"RPB",87248,{"$f":"+D8/$D$23","v":0.51380987715392856},2852371.72,null,0,83449,2792350.1,"-",0,{"$f":"+D8/I8","v":1.0455248115615525},{"$f":"+F8/J8","v":1.0214950195536012}]
["PJA - Pagamentos para os Jovens Agricultores",null,"RJA",2918,{"$f":"+D9/$D$23","v":1.7184316219685993E-2},null,null,0,2856,0,"-",0,{"$f":"+D9/I9","v":1.0217086834733893}]
["RPA - Regime da Pequena Agricultura",null,"RPA",63065,0.37139441480277491,153262.21,null,0,68820,171401.72,"-",0,0.91637605347282769,{"$f":"+F10/J10","v":0.89416961510071191}]
["Algodão",null,"ALGODAO",0,0,0,null,0,0,0,"-",0,{"$f":"IFERROR(+D11/I11,0)","v":0},{"$f":"IFERROR(+F11/J11,0)","v":0}]
["Manutenção da Atividade Agrícola",null,"MZD",122821,0.72330188568130693,2521104.9,null,0,120848,2451676.2599999998,"-",0,1.01632629418774,1.0283188450011749]
["Medidas Agro-Ambientais",null,"MAA",57359,0.33779136190711756,null,78477.3,0,58027,null,83395.453999999998,0,0.98848811760042743,null,{"$f":"+G13/K13","v":0.94102611396539682}]
["Prémio por Ovelha e Cabra***",null,"POC",21060,0.1240238860817639,null,null,0,17335,"-","-",0,1.2148831843092009]
["Prémio por Vaca em Aleitamento***",null,"VAL",19423,0.11438347290437323,null,null,0,19185,"-","-",0,1.0124055251498567]
["Prémio por Vacas Leiteiras ***",null,"VLE",6602,3.8879662673874896E-2,null,null,0,5546,"-","-",0,1.1904075009015507]
["Tomate",null,"TOMATE",462,2.7207519168933958E-3,19513.240000000002,null,0,493,19460.43,"-",0,0.93711967545638941,1.0027137118758425]
["Arroz",null,"ARROZ",1096,6.454424460855329E-3,29541.21,null,0,1117,29704.82,"-",0,0.98119964189794096,0.99449213965948957]
["Florestação de Terras Agrícolas - PRODER ",null,"FTAPRODER",401,2.3615184386888569E-3,11685.87,null,0,404,11688.04,"-",0,0.99257425742574257,0.99981434012888393]
["Florestação de Terras Agrícolas - RURIS",null,"FTARURIS",2740,1.6136061152138323E-2,41809.9,null,0,2802,42855.21,"-",0,0.97787294789436119,0.97560833326916385]
["Florestação de Terras Agrícolas - Reg 2080",null,"FTA2080",3335,1.964005983298588E-2,70832.62,null,0,3861,88271.48,"-",0,0.86376586376586373,0.80244060709076137]
["Florestação de Terras Agrícolas - Reg 2328",null,"FTA2328",10,5.8890734131891691E-5,350.26,null,0,25,754.72,"-",0,0.4,0.46409264362942543]
["Total de PU no Continente",null,null,169806,"-",null,null,0,168973,null,null,0,1.0049297816810969]
[null,null,null,2017,null,null,null,null,2016]
[]
["* Não foram considerados os PU cujos beneficiários apresentaram pedido de anulação das respetivas candidaturas."]
["**  Animais em CN."]
["*** O n.º de candidaturas corresponde às declarações de intenção para 2017 confirmadas no PU 2017"]

{"sheet":"QUADRO01 - MADEIRA","index":5,"n_rows":20,"n_cols":15,"rows_kept":20,"cut":false,"hidden":false,"merged":[[2,12,2,14],[4,12,5,12],[4,13,5,13],[4,14,5,14],[0,0,0,13],[4,8,5,8],[4,9,5,9],[4,10,5,10],[2,8,2,10],[2,3,2,6],[3,3,3,4],[4,3,5,3],[4,4,5,4],[4,5,5,5],[4,6,5,6],[13,0,13,1],[14,0,14,1],[15,0,15,1],[12,0,12,1],[2,0,6,1],[7,0,7,1],[8,0,8,1],[9,0,9,1],[10,0,10,1],[11,0,11,1]]}
["QUADRO 1 - NÚMERO DE CANDIDATURAS, ÁREAS E ANIMAIS DECLARADOS, POR AJUDA/APOIO - PU2017/PU2016"]
["MADEIRA"]
["AJUDA / APOIO",null,null,"Campanha 2017*",null,null,null,null,"Campanha 2016*",null,null,null,"Comparação 2017/2016"]
[null,null,null,"Candidaturas ",null,"Área","Animais**",null,"Candidaturas ","Área","Animais**",null,"Candidaturas ","Área","Animais"]
[null,null,null,"(nº)","% Ajuda/Apoio no Total de PU"," (ha)"," (nº)",null,"(nº)"," (ha)"," (nº)",null,"(nº)"," (ha)"," (cn)"]
[]
[null,null,null,"[1]","[2]","[3]","[4]",null,"[1]","[3]","[4]",null,"[8] = [1]/[5]","[9] = [3]/[6]","[10] = [4]/[7]"]
["Manutenção da Atividade Agrícola",null,"MZD",11166,{"$f":"+D8/$D$16","v":0.98370187648665319},3288.34,null,null,11168,3288.48,"-",null,{"$f":"+D8/I8","v":0.99982091690544417},{"$f":"+F8/J8","v":0.99995742713959035}]
["Medidas Agro-Ambientais ",null,"MAA",1761,{"$f":"+D9/$D$16","v":0.15514051625407452},null,null,null,1761,null,"",null,{"$f":"+D9/I9","v":1}]
["POSEI - Abate Suínos",null,"POSSUI",18,1.5857633688661792E-3,null,null,null,18,"-","-",null,1]
["POSEI - Abate Bovinos",null,"POSPAB",449,3.9555986256717468E-2,null,null,null,448,"-","-",null,1.0022321428571428]
["POSEI - Vacas Leiteiras",null,"POSVLE",26,2.2905470883622589E-3,null,null,null,26,"-","-",null,1]
["POSEI - Medida 1",null,"POSMED1",11184,0.98528763985551937,3329.07,null,null,11186,3329.21,"-",null,0.99982120507777583,{"$f":"+F13/J13","v":0.99995794798165338}]
["POSEI - Vinha",null,"POSVIN",1202,0.10589375385428597,337.22,null,null,1200,336.62,"-",null,1.0016666666666667,1.0017824252866734]
["POSEI - Banana",null,"POSBAN",3015,0.26561536428508503,636.36,null,null,3017,636.45000000000005,"-",null,0.99933708982432878,0.99985859061984439]
["Total de PU na Madeira",null,null,11351,"-",null,null,null,11354,null,null,null,0.99973577593799545]
[null,null,null,2017,null,null,null,null,2016]
[]
["* Não foram considerados os PU cujos beneficiários apresentaram pedido de anulação das respetivas candidaturas."]
["**  Animais em CN."]

{"sheet":"GRÁFICO02","index":6,"n_rows":2,"n_cols":30,"rows_kept":2,"cut":false,"hidden":false,"merged":[]}
[null,null,null,null,null,null,null,null,null,null,null,null,null,null,null,null,null,null,null,null,null,null,null,null,null,null,{"$f":"CONCATENATE(AB1,AC1,AD1)","v":"GRÁFICO 2 - N.º DE CANDIDATURAS, POR AJUDA / APOIO - PU2017/PU2016 - CONTINENTE"},"GRÁFICO 2 - N.º DE CANDIDATURAS, POR AJUDA / APOIO - PU2017/PU2016"," - ","CONTINENTE"]
[null,null,null,null,null,null,null,null,null,null,null,null,null,null,null,null,null,null,null,null,null,null,null,null,null,null,{"$f":"CONCATENATE(AB2,AC2,AD2)","v":"GRÁFICO 2 - N.º DE CANDIDATURAS, POR AJUDA / APOIO, PU2017/PU2016 - MADEIRA"},"GRÁFICO 2 - N.º DE CANDIDATURAS, POR AJUDA / APOIO, PU2017/PU2016"," - ","MADEIRA"]

{"sheet":"GRÁFICO03","index":7,"n_rows":2,"n_cols":30,"rows_kept":2,"cut":false,"hidden":false,"merged":[]}
[null,null,null,null,null,null,null,null,null,null,null,null,null,null,null,null,null,null,null,null,null,null,null,null,null,null,{"$f":"CONCATENATE(AB1,AC1,AD1)","v":"GRÁFICO 3 - ÁREAS (HA), POR AJUDA / APOIO - PU2017/PU2016 - CONTINENTE"},"GRÁFICO 3 - ÁREAS (HA), POR AJUDA / APOIO - PU2017/PU2016"," - ","CONTINENTE"]
[null,null,null,null,null,null,null,null,null,null,null,null,null,null,null,null,null,null,null,null,null,null,null,null,null,null,{"$f":"CONCATENATE(AB2,AC2,AD2)","v":"GRÁFICO 3 - ÁREAS (HA), POR AJUDA / APOIO, PU2017/PU2016 - MADEIRA"},"GRÁFICO 3 - ÁREAS (HA), POR AJUDA / APOIO, PU2017/PU2016"," - ","MADEIRA"]

{"sheet":"GRÁFICO04","index":8,"n_rows":1,"n_cols":27,"rows_kept":1,"cut":false,"hidden":false,"merged":[]}
[null,null,null,null,null,null,null,null,null,null,null,null,null,null,null,null,null,null,null,null,null,null,null,null,null,null,"GRÁFICO 4 - MAA - ANIMAIS (CN) DECLARADOS - PU2017/PU2016"]

{"sheet":"QUADRO02 - CONTINENTE","index":9,"n_rows":189,"n_cols":9,"rows_kept":189,"cut":false,"hidden":false,"merged":[[0,0,0,8],[174,0,182,0],[174,2,181,2],[174,4,180,4],[181,4,181,6],[182,2,182,6],[151,4,151,6],[152,2,152,6],[173,2,173,6],[62,4,63,4],[72,4,72,6],[153,4,167,4],[168,4,171,4],[2,7,2,8],[64,4,71,4],[48,4,55,4],[188,0,188,6],[123,0,152,0],[4,4,9,4],[10,4,18,4],[19,4,31,4],[123,2,151,2],[183,0,187,0],[183,2,186,2],[183,4,185,4],[186,4,186,6],[187,2,187,6],[145,4,150,4],[172,4,172,6],[136,4,142,4],[56,4,57,4],[58,4,61,4],[73,4,82,4],[143,4,144,4],[83,4,84,4],[85,4,92,4],[93,4,122,4],[123,4,135,4],[2,4,3,4],[2,6,3,6],[32,4,43,4],[2,0,3,0],[2,2,3,2],[4,2,31,2],[32,2,63,2],[4,0,31,0],[32,0,63,0],[44,4,45,4],[46,4,47,4],[93,2,122,2],[93,0,122,0],[153,0,173,0],[153,2,172,2],[64,2,72,2],[64,0,92,0],[73,2,92,2]]}
["QUADRO 2 - NÚMERO DE CANDIDATURAS E ÁREAS (HA) DECLARADAS, POR CULTURA - PU2017"]
["CONTINENTE"]
["NIVEL_I",null,"NIVEL_II",null,"NIVEL_III",null,"CULTURA",2017]
[null,null,null,null,null,null,null,"CANDIDATURAS","AREA"]
["SUPERFÍCIE AGRÍCOLA",null,"CULTURAS PERMANENTES",null,"CITRINOS",null,"LARANJA",6736,8667.14]
[null,null,null,null,null,null,"LIMÃO",306,328.78]
[null,null,null,null,null,null,"TANGERA",5,2.93]
[null,null,null,null,null,null,"TANGERINA",284,880.6]
[null,null,null,null,null,null,"OUTROS CITRINOS",893,493.38]
[null,null,null,null,null,null,"SUB-TOTAL DE CITRINOS",7673,10372.83]
[null,null,null,null,"FRUTOS DE CASCA RIJA",null,"ALFARROBA",1545,5050.1099999999997]
[null,null,null,null,null,null,"AMENDOA",12606,25663.24]
[null,null,null,null,null,null,"AVELÃ",446,243.62]
[null,null,null,null,null,null,"CASTANHA",20406,38045.370000000003]
[null,null,null,null,null,null,"NOZ",2529,2512.98]
[null,null,null,null,null,null,"PINHÃO",1297,30930.14]
[null,null,null,null,null,null,"PISTACIOS",33,75.88]
[null,null,null,null,null,null,"OUTROS FRUTOS SECOS",1385,1117.4100000000001]
[null,null,null,null,null,null,"SUB-TOTAL DE FRUTOS DE CASCA RIJA",34717,103638.75]
[null,null,null,null,"FRUTOS FRESCOS (EXCETO CITRINOS)",null,"AMEIXA",699,971.74]
[null,null,null,null,null,null,"CEREJA",4178,4479.76]
[null,null,null,null,null,null,"DAMASCO",119,374.2]
[null,null,null,null,null,null,"FIGO",1263,1116.3900000000001]
[null,null,null,null,null,null,"GINJA",40,50.84]
[null,null,null,null,null,null,"MAÇÃ",6676,9164.7999999999993]
[null,null,null,null,null,null,"MARMELO",870,1231.94]
[null,null,null,null,null,null,"NÊSPERA",38,7.36]
[null,null,null,null,null,null,"PERA",1693,6353.03]
[null,null,null,null,null,null,"PÊSSEGO",1297,2529.34]
[null,null,null,null,null,null,"POMARES MISTOS DE FRUTOS FRESCOS",1,0.23]
[null,null,null,null,null,null,"OUTRAS FRUTOS FRESCOS",14561,2657.96]
[null,null,null,null,null,null,"SUB-TOTAL DE FRUTOS FRESCOS (EXCETO CITRINOS)",26941,28937.59]
["SUPERFÍCIE AGRÍCOLA",null,"CULTURAS PERMANENTES",null,"FRUTOS SUB TROPICAIS",null,"ABACATE",111,489]
[null,null,null,null,null,null,"ANANÁS",0,0]
[null,null,null,null,null,null,"ANONA",2,2.17]
[null,null,null,null,null,null,"BANANA",3,2.21]
[null,null,null,null,null,null,"DIOSPIRO",130,164.34]
[null,null,null,null,null,null,"FIGO DA INDIA",109,445.55]
[null,null,null,null,null,null,"KIWI",763,2140.69]
[null,null,null,null,null,null,"MARACUJÁ",19,19.09]
[null,null,null,null,null,null,"PAPAIA",0,0]
[null,null,null,null,null,null,"ROMÃ",78,288.2]
[null,null,null,null,null,null,"OUTROS FRUTOS SUB-TROPICAIS",192,57.92]
[null,null,null,null,null,null,"SUB-TOTAL DE FRUTOS SUB TROPICAIS",1364,3609.17]
[null,null,null,null,"MISTO DE CULTURAS PERMANENTES",null,"MISTO CULTURAS PERMANENTES",32248,18379.3]
[null,null,null,null,null,null,"SUB-TOTAL DE MISTO CULTURAS PERMANENTES",32248,18379.3]
[null,null,null,null,"OLIVAL",null,"OLIVAL ",81859,277686.26]
[null,null,null,null,null,null,"SUB-TOTAL DE OLIVAL",81859,277686.26]
[null,null,null,null,"PEQUENOS FRUTOS",null,"AMORA",99,89.45]
[null,null,null,null,null,null,"FRAMBOESA",306,409.32]
[null,null,null,null,null,null,"GROSELHA",113,85.18]
[null,null,null,null,null,null,"MEDRONHO",384,1574.56]
[null,null,null,null,null,null,"MIRTILO",1081,1487.35]
[null,null,null,null,null,null,"SABUGUEIRO (BAGA)",318,201.37]
[null,null,null,null,null,null,"OUTROS PEQUENOS FRUTOS",2220,507.41]
[null,null,null,null,null,null,"SUB-TOTAL DE PEQUENOS FRUTOS",4230,4354.6400000000003]
[null,null,null,null,"POVOAMENTO DE SOBREIRO",null,"SOBREIRO PARA PRODUÇÃO DE CORTIÇA",7751,239376.64000000001]
[null,null,null,null,null,null,"SUB-TOTAL DE POVOAMENTO DE SOBREIRO",7751,239376.64000000001]
[null,null,null,null,"PRADOS PERMANENTES",null,"PASTAGENS ARBUSTIVAS",73320,233462.2]
[null,null,null,null,null,null,"PASTAGENS EM PRÁTICAS LOCAIS",10842,172200.52]
[null,null,null,null,null,null,"PASTAGENS PERMANENTES",59842,992803.96]
[null,null,null,null,null,null,"SUB-TOTAL DE PRADOS PERMANENTES",96792,1398466.68]
[null,null,null,null,"VINHA",null,"VINHA ",71046,120600.16]
[null,null,null,null,null,null,"SUB-TOTAL DE VINHA",71046,120600.16]
["SUPERFÍCIE AGRÍCOLA",null,"CULTURAS PERMANENTES",null,"OUTRAS CULTURAS PERMANENTES",null,"CANA DE AÇÚCAR",3,2.2400000000000002]
[null,null,null,null,null,null,"CHÁ",0,0]
[null,null,null,null,null,null,"LUPULO",4,10.8]
[null,null,null,null,null,null,"MARALFALFA",3,4.78]
[null,null,null,null,null,null,"VIME",0,0]
[null,null,null,null,null,null,"VIVEIROS ",156,146.38999999999999]
[null,null,null,null,null,null,"OUTRAS CULTURAS PERMANENTES",619,341.98]
[null,null,null,null,null,null,"SUB-TOTAL DE OUTRAS CULTURAS PERMANENTES",781,506.19]
[null,null,null,null,"SUB-TOTAL DE CULTURAS PERMANENTES",null,null,154461,2205928.21]
[null,null,"CULTURAS TEMPORÁRIAS",null,"CEREAIS",null,"ARROZ",1186,28616.92]
[null,null,null,null,null,null,"AVEIA",17963,60789.69]
[null,null,null,null,null,null,"CENTEIO",11669,15179.97]
[null,null,null,null,null,null,"CEVADA",2037,22992.98]
[null,null,null,null,null,null,"MILHO",56050,103951.33]
[null,null,null,null,null,null,"SORGO",2625,7622.74]
[null,null,null,null,null,null,"TRIGO",5491,27195.02]
[null,null,null,null,null,null,"TRITICALE",1317,16581.71]
[null,null,null,null,null,null,"OUTROS CEREAIS",1465,1194.43]
[null,null,null,null,null,null,"SUB-TOTAL DE CEREAIS",76494,284124.78999999998]
[null,null,null,null,"FLORES",null,"FLORES E PLANTAS ORNAMENTAIS",343,463.68]
[null,null,null,null,null,null,"SUB-TOTAL DE FLORES",343,463.68]
[null,null,null,null,"FORRAGEIRAS",null,"AZEVEM",4142,17039.830000000002]
[null,null,null,null,null,null,"BROMUS",0,0]
[null,null,null,null,null,null,"CONSOCIAÇÕES ANUAIS E OUTRAS CULTURAS FORRAGEIRAS",21276,101817.26]
[null,null,null,null,null,null,"FESTUCA",12,15.67]
[null,null,null,null,null,null,"PANASCO",35,22.84]
[null,null,null,null,null,null,"PRADOS TEMPORÁRIOS (PASTOREIO)",65487,619183.87]
[null,null,null,null,null,null,"SERRADELA",8,94.5]
[null,null,null,null,null,null,"SUB-TOTAL DE FORRAGEIRAS",80430,738173.97]
["SUPERFÍCIE AGRÍCOLA",null,"CULTURAS TEMPORÁRIAS",null,"HORTICOLAS",null,"ABÓBORAS E ABOBORINHAS",4595,5051.38]
[null,null,null,null,null,null,"AGRIÃO",7,1.03]
[null,null,null,null,null,null,"ALFACE",177,74.27]
[null,null,null,null,null,null,"ALHO",87,645.63]
[null,null,null,null,null,null,"ALHO FRANCÊS",37,108.52]
[null,null,null,null,null,null,"BATATA",30680,7690.42]
[null,null,null,null,null,null,"BATATA DOCE",193,442.37]
[null,null,null,null,null,null,"BERINGELA",50,74.27]
[null,null,null,null,null,null,"BETERRABA",216,92.02]
[null,null,null,null,null,null,"CEBOLA",539,604.59]
[null,null,null,null,null,null,"CENOURA",87,1181.5]
[null,null,null,null,null,null,"CHUCHU",5,8.48]
[null,null,null,null,null,null,"COURGETTE",100,173.65]
[null,null,null,null,null,null,"COUVE",558,1545.86]
[null,null,null,null,null,null,"MELANCIA",274,508.41]
[null,null,null,null,null,null,"MELÃO",469,1825.42]
[null,null,null,null,null,null,"MELOA",60,128.58000000000001]
[null,null,null,null,null,null,"MORANGO",224,254.41]
[null,null,null,null,null,null,"MOSTARDA",6,1.56]
[null,null,null,null,null,null,"NABIÇA",136,45.95]
[null,null,null,null,null,null,"NABO",597,712.42]
[null,null,null,null,null,null,"PEPINO",29,6.62]
[null,null,null,null,null,null,"PIMENTO",274,1023.93]
[null,null,null,null,null,null,"RABANETE",3,1.59]
[null,null,null,null,null,null,"RÁBANO",1,0.03]
[null,null,null,null,null,null,"RÚCULA",0,0]
[null,null,null,null,null,null,"RUTABAGA",1,0.02]
[null,null,null,null,null,null,"TOMATE",633,19674.919999999998]
[null,null,null,null,null,null,"OUTRAS HORTÍCOLAS",64941,15039.08]
[null,null,null,null,null,null,"SUB-TOTAL DE HORTICOLAS",78742,56916.93]
["SUPERFÍCIE AGRÍCOLA",null,"CULTURAS TEMPORÁRIAS",null,"LEGUMINOSAS",null,"ANAFA",1,0.15]
[null,null,null,null,null,null,"CONSOCIAÇÃO DE FIXADORAS DE AZOTO",144,665.05]
[null,null,null,null,null,null,"ERVILHA",518,4282.95]
[null,null,null,null,null,null,"ERVILHACA",64,444.36]
[null,null,null,null,null,null,"FAVA",878,1268.4000000000001]
[null,null,null,null,null,null,"FEIJÃO",6535,3059.97]
[null,null,null,null,null,null,"GRÃO DE BICO",971,1589.87]
[null,null,null,null,null,null,"LUZERNA",412,1580.72]
[null,null,null,null,null,null,"TREMOCILHA",1088,9869.2800000000007]
[null,null,null,null,null,null,"TREMOÇO",1876,1656.23]
[null,null,null,null,null,null,"TREVO",202,1864.59]
[null,null,null,null,null,null,"OUTRAS LEGUMINOSAS SECAS",410,489.88]
[null,null,null,null,null,null,"SUB-TOTAL DE LEGUMINOSAS",11840,26771.45]
[null,null,null,null,"OLEAGINOSAS",null,"AMENDOIM",32,725.22]
[null,null,null,null,null,null,"COLZA",180,4301.8]
[null,null,null,null,null,null,"GIRASSOL",852,12754.27]
[null,null,null,null,null,null,"LINHO",3,0.59]
[null,null,null,null,null,null,"SOJA",10,89.6]
[null,null,null,null,null,null,"OUTRAS OLEAGINOSAS",57,413.79]
[null,null,null,null,null,null,"SUB-TOTAL DE OLEAGINOSAS",1035,18285.27]
[null,null,null,null,"POUSIOS",null,"POUSIO",43477,101814.57]
[null,null,null,null,null,null,"SUB-TOTAL DE POUSIO",43477,101814.57]
[null,null,null,null,"OUTRAS CULTURAS TEMPORÁRIAS",null,"ALGODÃO",0,0]
[null,null,null,null,null,null,"CÂNHAMO",1,0.75]
[null,null,null,null,null,null,"INHAME",4,1.19]
[null,null,null,null,null,null,"PLANTAS AROM., MEDICINAIS E CONDIMENTARES",378,1302.3499999999999]
[null,null,null,null,null,null,"TABACO",6,1.96]
[null,null,null,null,null,null,"SUB-TOTAL DE OUTRAS CULTURAS TEMPORÁRIAS",389,1306.25]
[null,null,null,null,"SUB-TOTAL DE CULTURAS TEMPORÁRIAS",null,null,147437,1227856.9099999999]
[null,null,"SUB-TOTAL DE SUPERFICIE AGRÍCOLA",null,null,null,null,168350,3433785.12]
["SUPERFÍCIE FLORESTAL",null,"SUPERFÍCIES FLORESTAIS",null,"POVOAMENTO FLORESTAL",null,"ACEIRO FLORESTAL",281,229.26]
[null,null,null,null,null,null,"GALERIA RIPÍCOLA FLORESTAL",17,162.91]
[null,null,null,null,null,null,"MEDRONHEIRO",28,405.61]
[null,null,null,null,null,null,"POVOAMENTO AZINHEIRAS",426,13004.65]
[null,null,null,null,null,null,"POVOAMENTO CARVALHO NEGRAL",153,474.55]
[null,null,null,null,null,null,"POVOAMENTO CASTANHEIRO",45,38.119999999999997]
[null,null,null,null,null,null,"POVOAMENTO DE EUCALIPTO ",275,5974.36]
[null,null,null,null,null,null,"POVOAMENTO DE PINHEIRO MANSO",1241,30684.03]
[null,null,null,null,null,null,"POVOAMENTO DE SOBREIROS",3365,77987.990000000005]
[null,null,null,null,null,null,"POVOAMENTO F MISTO",1074,6305.41]
[null,null,null,null,null,null,"POVOAMENTO MISTO QUERCUS(SOB.AZENH.CARVAL/NEGRAL)",53,284.91000000000003]
[null,null,null,null,null,null,"SALIX",0,0]
[null,null,null,null,null,null,"POVOAMENTO OUTRAS FOLHOSAS",2200,10739.11]
[null,null,null,null,null,null,"POVOAMENTO OUTRAS RESINOSAS",1665,10273.530000000001]
[null,null,null,null,null,null,"SUB-TOTAL DE POVOAMENTO FLORESTAL",7203,156564.44]
[null,null,null,null,"SUPERFÍCIE NÃO ARBORIZADA",null,"MACIÇOS OU FORMAÇÕES RELIQUIAIS OU NOTÁVEIS",33,18.78]
[null,null,null,null,null,null,"SUPERFÍCIE ARBUSTIVA NÃO PASTOREÁVEL",11851,24406.55]
[null,null,null,null,null,null,"OUTRAS SUPERFÍCIES FLORESTAIS",1078,5721.33]
[null,null,null,null,null,null,"SUB-TOTAL DE SUPERFÍCIE NÃO ARBORIZADA",12750,30146.66]
[null,null,null,null,"SUB-TOTAL DE SUPERFÍCIES FLORESTAIS",null,null,18402,186711.1]
[null,null,"SUB-TOTAL DE SUPERFÍCIE FLORESTAL",null,null,null,null,18402,186711.1]
["ELEMENTOS LINEARES E DA PAISAGEM",null,"ELEMENTOS LINEARES E DA PAISAGEM",null,"ELEMENTOS LINEARES E DA PAISAGEM",null,"CABECEIRAS CULT. PERMANENTES -ÁREA ÚTIL",20131,4844.1099999999997]
[null,null,null,null,null,null,"ELEMENTO LINEAR EM ORIZICULTURA-ÁREA ÚTIL",786,1054.71]
[null,null,null,null,null,null,"ELEMENTO LINEAR SEBE OU CORTA-VENTO-ÁREA ÚTIL",301,50.32]
[null,null,null,null,null,null,"EP-BOSQUETE E FORMAÇÕES RELIQUIAIS-ÁREA ÚTIL",20,3.08]
[null,null,null,null,null,null,"GALERIA RIPÍCOLA - ÁREA ÚTIL",1440,585.9]
[null,null,null,null,null,null,"LINHAS DE ÁGUA - ÁREA ÚTIL",1560,706.11]
[null,null,null,null,null,null,"SUB-TOTAL DE ELEMENTOS LINEARES E DA PAISAGEM",23769,7244.23]
[null,null,null,null,"SUB-TOTAL DE ELEMENTOS LINEARES E DA PAISAGEM",null,null,23769,7244.23]
[null,null,"SUB-TOTAL DE ELEMENTOS LINEARES E DA PAISAGEM",null,null,null,null,23769,7244.23]
["ZONAS DE PROTEÇÃO",null,"ZONAS DE PROTEÇÃO",null,"ZONAS DE PROTEÇÃO",null,"BOSQUETES",1558,197.36]
[null,null,null,null,null,null,"GALERIA RIPÍCOLA",418,151.61000000000001]
[null,null,null,null,null,null,"SUB-TOTAL DE ZONAS DE PROTEÇÃO",1960,348.97]
[null,null,null,null,"SUB-TOTAL DE ZONAS DE PROTEÇÃO",null,null,1960,348.97]
[null,null,"SUB-TOTAL DE ZONAS DE PROTEÇÃO",null,null,null,null,1960,348.97]
["ÁREA TOTAL",null,null,null,null,null,null,null,{"$f":"+I188+I183+I174+I153","v":3628089.42}]

{"sheet":"QUADRO02 - MADEIRA","index":10,"n_rows":189,"n_cols":9,"rows_kept":189,"cut":false,"hidden":false,"merged":[[188,0,188,6],[0,0,0,8],[183,0,187,0],[183,2,186,2],[183,4,185,4],[186,4,186,6],[187,2,187,6],[174,0,182,0],[174,2,181,2],[174,4,180,4],[181,4,181,6],[182,2,182,6],[153,0,173,0],[153,2,172,2],[153,4,167,4],[168,4,171,4],[172,4,172,6],[173,2,173,6],[93,0,122,0],[93,2,122,2],[93,4,122,4],[123,0,152,0],[123,2,151,2],[123,4,135,4],[136,4,142,4],[143,4,144,4],[145,4,150,4],[151,4,151,6],[152,2,152,6],[64,0,92,0],[64,2,72,2],[64,4,71,4],[72,4,72,6],[73,2,92,2],[73,4,82,4],[83,4,84,4],[85,4,92,4],[32,0,63,0],[32,2,63,2],[32,4,43,4],[44,4,45,4],[46,4,47,4],[48,4,55,4],[56,4,57,4],[58,4,61,4],[62,4,63,4],[2,2,3,2],[2,4,3,4],[2,6,3,6],[2,7,2,8],[4,0,31,0],[4,2,31,2],[4,4,9,4],[10,4,18,4],[19,4,31,4],[2,0,3,0]]}
["QUADRO 2 - NÚMERO DE CANDIDATURAS E ÁREAS (HA) DECLARADAS, POR CULTURA - PU2017"]
["MADEIRA"]
["NIVEL_I",null,"NIVEL_II",null,"NIVEL_III",null,"CULTURA",2017]
[null,null,null,null,null,null,null,"CANDIDATURAS","AREA"]
["SUPERFÍCIE AGRÍCOLA",null,"CULTURAS PERMANENTES",null,"CITRINOS",null,"LARANJA",51,2.37]
[null,null,null,null,null,null,"LIMÃO",142,24.01]
[null,null,null,null,null,null,"TANGERA",0,0]
[null,null,null,null,null,null,"TANGERINA",39,4.82]
[null,null,null,null,null,null,"OUTROS CITRINOS",24,3]
[null,null,null,null,null,null,"SUB-TOTAL DE CITRINOS",246,34.200000000000003]
[null,null,null,null,"FRUTOS DE CASCA RIJA",null,"ALFARROBA",0,0]
[null,null,null,null,null,null,"AMENDOA",0,0]
[null,null,null,null,null,null,"AVELÃ",0,0]
[null,null,null,null,null,null,"CASTANHA",183,85.44]
[null,null,null,null,null,null,"NOZ",22,4.51]
[null,null,null,null,null,null,"PINHÃO",0,0]
[null,null,null,null,null,null,"PISTACIOS",0,0]
[null,null,null,null,null,null,"OUTROS FRUTOS SECOS",11,1.04]
[null,null,null,null,null,null,"SUB-TOTAL DE FRUTOS DE CASCA RIJA",206,90.99]
[null,null,null,null,"FRUTOS FRESCOS (EXCETO CITRINOS)",null,"AMEIXA",71,6.23]
[null,null,null,null,null,null,"CEREJA",151,21.82]
[null,null,null,null,null,null,"DAMASCO",2,0.04]
[null,null,null,null,null,null,"FIGO",40,2.15]
[null,null,null,null,null,null,"GINJA",4,0.33]
[null,null,null,null,null,null,"MAÇÃ",282,44.88]
[null,null,null,null,null,null,"MARMELO",0,0]
[null,null,null,null,null,null,"NÊSPERA",9,0.53]
[null,null,null,null,null,null,"PERA",14,1.91]
[null,null,null,null,null,null,"PÊSSEGO",4,0.11]
[null,null,null,null,null,null,"POMARES MISTOS DE FRUTOS FRESCOS",75,15.22]
[null,null,null,null,null,null,"OUTRAS FRUTOS FRESCOS",261,36.119999999999997]
[null,null,null,null,null,null,"SUB-TOTAL DE FRUTOS FRESCOS (EXCETO CITRINOS)",816,129.34]
["SUPERFÍCIE AGRÍCOLA",null,"CULTURAS PERMANENTES",null,"FRUTOS SUB TROPICAIS",null,"ABACATE",44,2.95]
[null,null,null,null,null,null,"ANANÁS",0,0]
[null,null,null,null,null,null,"ANONA",183,17.27]
[null,null,null,null,null,null,"BANANA",3017,636.51]
[null,null,null,null,null,null,"DIOSPIRO",2,0.23]
[null,null,null,null,null,null,"FIGO DA INDIA",7,1.17]
[null,null,null,null,null,null,"KIWI",14,2.5]
[null,null,null,null,null,null,"MARACUJÁ",31,5.84]
[null,null,null,null,null,null,"PAPAIA",9,1.44]
[null,null,null,null,null,null,"ROMÃ",3,0.17]
[null,null,null,null,null,null,"OUTROS FRUTOS SUB-TROPICAIS",2605,286.14999999999998]
[null,null,null,null,null,null,"SUB-TOTAL DE FRUTOS SUB TROPICAIS",5473,954.23]
[null,null,null,null,"MISTO DE CULTURAS PERMANENTES",null,"MISTO CULTURAS PERMANENTES",184,22.86]
[null,null,null,null,null,null,"SUB-TOTAL DE MISTO CULTURAS PERMANENTES",184,22.86]
[null,null,null,null,"OLIVAL",null,"OLIVAL ",1,0.02]
[null,null,null,null,null,null,"SUB-TOTAL DE OLIVAL",1,0.02]
[null,null,null,null,"PEQUENOS FRUTOS",null,"AMORA",5,0.46]
[null,null,null,null,null,null,"FRAMBOESA",2,0.65]
[null,null,null,null,null,null,"GROSELHA",0,0]
[null,null,null,null,null,null,"MEDRONHO",0,0]
[null,null,null,null,null,null,"MIRTILO",5,1.1100000000000001]
[null,null,null,null,null,null,"SABUGUEIRO (BAGA)",0,0]
[null,null,null,null,null,null,"OUTROS PEQUENOS FRUTOS",226,20.71]
[null,null,null,null,null,null,"SUB-TOTAL DE PEQUENOS FRUTOS",236,22.93]
[null,null,null,null,"POVOAMENTO DE SOBREIRO",null,"SOBREIRO PARA PRODUÇÃO DE CORTIÇA",0,0]
[null,null,null,null,null,null,"SUB-TOTAL DE POVOAMENTO DE SOBREIRO",0,0]
[null,null,null,null,"PRADOS PERMANENTES",null,"PASTAGENS ARBUSTIVAS",129,21.42]
[null,null,null,null,null,null,"PASTAGENS EM PRÁTICAS LOCAIS",0,0]
[null,null,null,null,null,null,"PASTAGENS PERMANENTES",246,206.8]
[null,null,null,null,null,null,"SUB-TOTAL DE PRADOS PERMANENTES",358,228.22]
[null,null,null,null,"VINHA",null,"VINHA ",3285,581.27]
[null,null,null,null,null,null,"SUB-TOTAL DE VINHA",3285,581.27]
["SUPERFÍCIE AGRÍCOLA",null,"CULTURAS PERMANENTES",null,"OUTRAS CULTURAS PERMANENTES",null,"CANA DE AÇÚCAR",781,89.6]
[null,null,null,null,null,null,"CHÁ",1,0.08]
[null,null,null,null,null,null,"LUPULO",0,0]
[null,null,null,null,null,null,"MARALFALFA",0,0]
[null,null,null,null,null,null,"VIME",10,0.75]
[null,null,null,null,null,null,"VIVEIROS ",3,1.17]
[null,null,null,null,null,null,"OUTRAS CULTURAS PERMANENTES",72,6.89]
[null,null,null,null,null,null,"SUB-TOTAL DE OUTRAS CULTURAS PERMANENTES",859,98.49]
[null,null,null,null,"SUB-TOTAL DE CULTURAS PERMANENTES",null,null,8550,2162.5500000000002]
[null,null,"CULTURAS TEMPORÁRIAS",null,"CEREAIS",null,"ARROZ",0,0]
[null,null,null,null,null,null,"AVEIA",96,8.9499999999999993]
[null,null,null,null,null,null,"CENTEIO",1,0.11]
[null,null,null,null,null,null,"CEVADA",5,5.48]
[null,null,null,null,null,null,"MILHO",25,2.06]
[null,null,null,null,null,null,"SORGO",0,0]
[null,null,null,null,null,null,"TRIGO",46,6.55]
[null,null,null,null,null,null,"TRITICALE",0,0]
[null,null,null,null,null,null,"OUTROS CEREAIS",0,0]
[null,null,null,null,null,null,"SUB-TOTAL DE CEREAIS",142,23.15]
[null,null,null,null,"FLORES",null,"FLORES E PLANTAS ORNAMENTAIS",59,26.33]
[null,null,null,null,null,null,"SUB-TOTAL DE FLORES",59,26.33]
[null,null,null,null,"FORRAGEIRAS",null,"AZEVEM",0,0]
[null,null,null,null,null,null,"BROMUS",0,0]
[null,null,null,null,null,null,"CONSOCIAÇÕES ANUAIS E OUTRAS CULTURAS FORRAGEIRAS",1,0.32]
[null,null,null,null,null,null,"FESTUCA",0,0]
[null,null,null,null,null,null,"PANASCO",0,0]
[null,null,null,null,null,null,"PRADOS TEMPORÁRIOS (PASTOREIO)",171,109.29]
[null,null,null,null,null,null,"SERRADELA",0,0]
[null,null,null,null,null,null,"SUB-TOTAL DE FORRAGEIRAS",172,109.61]
["SUPERFÍCIE AGRÍCOLA",null,"CULTURAS TEMPORÁRIAS",null,"HORTICOLAS",null,"ABÓBORAS E ABOBORINHAS",2,0.3]
[null,null,null,null,null,null,"AGRIÃO",0,0]
[null,null,null,null,null,null,"ALFACE",6,0.56000000000000005]
[null,null,null,null,null,null,"ALHO",0,0]
[null,null,null,null,null,null,"ALHO FRANCÊS",0,0]
[null,null,null,null,null,null,"BATATA",332,29.5]
[null,null,null,null,null,null,"BATATA DOCE",126,7.79]
[null,null,null,null,null,null,"BERINGELA",0,0]
[null,null,null,null,null,null,"BETERRABA",0,0]
[null,null,null,null,null,null,"CEBOLA",17,0.49]
[null,null,null,null,null,null,"CENOURA",25,2.04]
[null,null,null,null,null,null,"CHUCHU",0,0]
[null,null,null,null,null,null,"COURGETTE",1,0.04]
[null,null,null,null,null,null,"COUVE",2,0.28000000000000003]
[null,null,null,null,null,null,"MELANCIA",0,0]
[null,null,null,null,null,null,"MELÃO",0,0]
[null,null,null,null,null,null,"MELOA",0,0]
[null,null,null,null,null,null,"MORANGO",6,0.56000000000000005]
[null,null,null,null,null,null,"MOSTARDA",0,0]
[null,null,null,null,null,null,"NABIÇA",0,0]
[null,null,null,null,null,null,"NABO",2,0.32]
[null,null,null,null,null,null,"PEPINO",10,2.63]
[null,null,null,null,null,null,"PIMENTO",0,0]
[null,null,null,null,null,null,"RABANETE",0,0]
[null,null,null,null,null,null,"RÁBANO",0,0]
[null,null,null,null,null,null,"RÚCULA",0,0]
[null,null,null,null,null,null,"RUTABAGA",0,0]
[null,null,null,null,null,null,"TOMATE",16,3.98]
[null,null,null,null,null,null,"OUTRAS HORTÍCOLAS",7382,1061.43]
[null,null,null,null,null,null,"SUB-TOTAL DE HORTICOLAS",7485,1109.92]
["SUPERFÍCIE AGRÍCOLA",null,"CULTURAS TEMPORÁRIAS",null,"LEGUMINOSAS",null,"ANAFA",0,0]
[null,null,null,null,null,null,"CONSOCIAÇÃO DE FIXADOREAS DE AZOTO",0,0]
[null,null,null,null,null,null,"ERVILHA",2,0.02]
[null,null,null,null,null,null,"ERVILHACA",0,0]
[null,null,null,null,null,null,"FAVA",6,0.13]
[null,null,null,null,null,null,"FEIJÃO",6,0.15]
[null,null,null,null,null,null,"GRÃO DE BICO",0,0]
[null,null,null,null,null,null,"LUZERNA",0,0]
[null,null,null,null,null,null,"TREMOCILHA",0,0]
[null,null,null,null,null,null,"TREMOÇO",5,0.16]
[null,null,null,null,null,null,"TREVO",0,0]
[null,null,null,null,null,null,"OUTRAS LEGUMINOSAS SECAS",0,0]
[null,null,null,null,null,null,"SUB-TOTAL DE LEGUMINOSAS",17,0.46]
[null,null,null,null,"OLEAGINOSAS",null,"AMENDOIM",0,0]
[null,null,null,null,null,null,"COLZA",0,0]
[null,null,null,null,null,null,"GIRASSOL",0,0]
[null,null,null,null,null,null,"LINHO",0,0]
[null,null,null,null,null,null,"SOJA",0,0]
[null,null,null,null,null,null,"OUTRAS OLEAGINOSAS",0,0]
[null,null,null,null,null,null,"SUB-TOTAL DE OLEAGINOSAS",0,0]
[null,null,null,null,"POUSIOS",null,"POUSIO",18,2.35]
[null,null,null,null,null,null,"SUB-TOTAL DE POUSIOS",18,2.35]
[null,null,null,null,"OUTRAS CULTURAS TEMPORÁRIAS",null,"ALGODÃO",0,0]
[null,null,null,null,null,null,"CÂNHAMO",0,0]
[null,null,null,null,null,null,"INHAME",4,0.06]
[null,null,null,null,null,null,"PLANTAS AROM., MEDICINAIS E CONDIMENTARES",6,0.94]
[null,null,null,null,null,null,"TABACO",0,0]
[null,null,null,null,null,null,"SUB-TOTAL DE OUTRAS CULTURAS TEMPORÁRIAS",10,1]
[null,null,null,null,"SUB-TOTAL DE CULTURAS TEMPORÁRIAS",null,null,7571,1272.82]
[null,null,"SUB-TOTAL DE SUPERFICIE AGRÍCOLA",null,null,null,null,11327,3435.37]
["SUPERFÍCIE FLORESTAL",null,"SUPERFÍCIES FLORESTAIS",null,"POVOAMENTO FLORESTAL",null,"ACEIRO FLORESTAL",0,0]
[null,null,null,null,null,null,"GALERIA RIPÍCOLA FLORESTAL",0,0]
[null,null,null,null,null,null,"MEDRONHEIRO",0,0]
[null,null,null,null,null,null,"POVOAMENTO AZINHEIRAS",0,0]
[null,null,null,null,null,null,"POVOAMENTO CARVALHO NEGRAL",0,0]
[null,null,null,null,null,null,"POVOAMENTO CASTANHEIRO",0,0]
[null,null,null,null,null,null,"POVOAMENTO DE EUCALIPTO ",0,0]
[null,null,null,null,null,null,"POVOAMENTO DE PINHEIRO MANSO",0,0]
[null,null,null,null,null,null,"POVOAMENTO DE SOBREIROS",0,0]
[null,null,null,null,null,null,"POVOAMENTO F MISTO",13,425.86]
[null,null,null,null,null,null,"POVOAMENTO MISTO QUERCUS(SOB.AZENH.CARVAL/NEGRAL)",0,0]
[null,null,null,null,null,null,"SALIX",0,0]
[null,null,null,null,null,null,"POVOAMENTO OUTRAS FOLHOSAS",0,0]
[null,null,null,null,null,null,"POVOAMENTO OUTRAS RESINOSAS",0,0]
[null,null,null,null,null,null,"SUB-TOTAL DE POVOAMENTO FLORESTAL",13,425.86]
[null,null,null,null,"SUPERFÍCIE NÃO ARBORIZADA",null,"MACIÇOS OU FORMAÇÕES RELIQUIAIS OU NOTÁVEIS",0,0]
[null,null,null,null,null,null,"SUPERFÍCIE ARBUSTIVA NÃO PASTOREÁVEL",104,11.03]
[null,null,null,null,null,null,"OUTRAS SUPERFÍCIES FLORESTAIS",2,0.82]
[null,null,null,null,null,null,"SUB-TOTAL DE SUPERFÍCIE NÃO ARBORIZADA",105,11.85]
[null,null,null,null,"SUB-TOTAL DE SUPERFÍCIES FLORESTAIS",null,null,118,437.71]
[null,null,"SUB-TOTAL DE SUPERFÍCIE FLORESTAL",null,null,null,null,118,437.71]
["ELEMENTOS LINEARES E DA PAISAGEM",null,"ELEMENTOS LINEARES E DA PAISAGEM",null,"ELEMENTOS LINEARES E DA PAISAGEM",null,"CABECEIRAS CULT. PERMANENTES -ÁREA ÚTIL",0,0]
[null,null,null,null,null,null,"ELEMENTO LINEAR EM ORIZICULTURA-ÁREA ÚTIL",0,0]
[null,null,null,null,null,null,"ELEMENTO LINEAR SEBE OU CORTA-VENTO-ÁREA ÚTIL",0,0]
[null,null,null,null,null,null,"EP-BOSQUETE E FORMAÇÕES RELIQUIAIS-ÁREA ÚTIL",0,0]
[null,null,null,null,null,null,"GALERIA RIPÍCOLA - ÁREA ÚTIL",0,0]
[null,null,null,null,null,null,"LINHAS DE ÁGUA - ÁREA ÚTIL",0,0]
[null,null,null,null,null,null,"SUB-TOTAL DE ELEMENTOS LINEARES E DA PAISAGEM",0,0]
[null,null,null,null,"SUB-TOTAL DE ELEMENTOS LINEARES E DA PAISAGEM",null,null,0,0]
[null,null,"SUB-TOTAL DE ELEMENTOS LINEARES E DA PAISAGEM",null,null,null,null,0,0]
["ZONAS DE PROTEÇÃO",null,"ZONAS DE PROTEÇÃO",null,"ZONAS DE PROTEÇÃO",null,"BOSQUETES",1,0.2]
[null,null,null,null,null,null,"GALERIA RIPÍCOLA",0,0]
[null,null,null,null,null,null,"SUB-TOTAL DE ZONAS DE PROTEÇÃO",1,0.2]
[null,null,null,null,"SUB-TOTAL DE ZONAS DE PROTEÇÃO",null,null,1,0.2]
[null,null,"SUB-TOTAL DE ZONAS DE PROTEÇÃO",null,null,null,null,1,0.2]
["ÁREA TOTAL",null,null,null,null,null,null,null,{"$f":"+I188+I183+I174+I153","v":3873.2799999999997}]

{"sheet":"QUADRO03 - CONTINENTE","index":11,"n_rows":23,"n_cols":3,"rows_kept":23,"cut":false,"hidden":false,"merged":[[0,0,1,2],[22,0,22,1],[5,0,7,0],[13,0,15,0],[10,0,12,0],[17,0,19,0],[3,0,4,0],[3,1,4,1]]}
["QUADRO 3 - ÁREAS (HA) DOS CEREAIS POR VARIEDADE / FINALIDADE - PU2017"]
[]
["CONTINENTE"]
["CULTURA","VARIEDADE / FINALIDADE",2017]
[null,null,"ÁREA"]
["ARROZ","INDICA",7821.38]
[null,"JAPONICA",20795.54]
[null,"SUB-TOTAL DE ARROZ",{"$f":"SUM(C6:C7)","v":28616.920000000002}]
["AVEIA","SUB-TOTAL DE AVEIA",60789.69]
["CENTEIO","SUB-TOTAL DE CENTEIO",15179.97]
["CEVADA","DISTICA",19044.329999999998]
[null,"HEXASTICA",3948.6499999999996]
[null,"SUB-TOTAL DE CEVADA",{"$f":"SUM(C11:C12)","v":22992.979999999996}]
["MILHO","GRÃO",68552.009999999995]
[null,"SILAGEM",35399.32]
[null,"SUB-TOTAL DE MILHO",{"$f":"SUM(C14:C15)","v":103951.32999999999}]
["SORGO","SUB-TOTAL DE SORGO",7622.74]
["TRIGO","DURO",4786.99]
[null,"MOLE",22408.03]
[null,"SUB-TOTAL DE TRIGO",{"$f":"SUM(C18:C19)","v":27195.019999999997}]
["TRITICALE","SUB-TOTAL DE TRITICALE",16581.71]
["OUTROS CEREAIS","SUB-TOTAL DE OUTROS CEREAIS",1194.43]
["TOTAL DE CEREAIS",null,{"$f":"+C8+C9+C10+C13+C16+C17+C20+C21+C22","v":284124.78999999998}]

{"sheet":"QUADRO03 - MADEIRA","index":12,"n_rows":23,"n_cols":3,"rows_kept":23,"cut":false,"hidden":false,"merged":[[22,0,22,1],[0,0,1,2],[3,1,4,1],[5,0,7,0],[10,0,12,0],[13,0,15,0],[17,0,19,0],[3,0,4,0]]}
["QUADRO 3 - ÁREAS (HA) DOS CEREAIS POR VARIEDADE / FINALIDADE - PU2017"]
[]
["MADEIRA"]
["CULTURA","VARIEDADE / FINALIDADE",2017]
[null,null,"ÁREA"]
["ARROZ","INDICA",0]
[null,"JAPONICA",0]
[null,"SUB-TOTAL DE ARROZ",{"$f":"SUM(C6:C7)","v":0}]
["AVEIA","SUB-TOTAL DE AVEIA",8.9499999999999993]
["CENTEIO","SUB-TOTAL DE CENTEIO",0.11]
["CEVADA","DISTICA",2.54]
[null,"HEXASTICA",2.94]
[null,"SUB-TOTAL DE CEVADA",{"$f":"SUM(C11:C12)","v":5.48}]
["MILHO","GRÃO",2]
[null,"SILAGEM",0.06]
[null,"SUB-TOTAL DE MILHO",{"$f":"SUM(C14:C15)","v":2.06}]
["SORGO","SUB-TOTAL DE SORGO",0]
["TRIGO","DURO",5.1100000000000003]
[null,"MOLE",1.44]
[null,"SUB-TOTAL DE TRIGO",{"$f":"SUM(C18:C19)","v":6.5500000000000007}]
["TRITICALE","SUB-TOTAL DE TRITICALE",0]
["OUTROS CEREAIS","SUB-TOTAL DE OUTROS CEREAIS",0]
["TOTAL DE CEREAIS",null,{"$f":"+C8+C9+C10+C13+C16+C17+C20+C21+C22","v":23.15}]

{"sheet":"QUADRO04 - CONTINENTE","index":13,"n_rows":47,"n_cols":4,"rows_kept":47,"cut":false,"hidden":false,"merged":[[19,0,22,0],[22,1,22,2],[0,0,0,3],[11,0,13,0],[13,1,13,2],[2,2,2,3],[2,1,3,1],[2,0,3,0],[46,0,46,2],[31,0,33,0],[33,1,33,2],[38,0,40,0],[40,1,40,2],[41,0,45,0],[45,1,45,2]]}
["QUADRO 4 - ÁREAS (HA) DOS HORTÍCOLAS POR FINALIDADE - PU2017"]
["CONTINENTE"]
["CULTURA","FINALIDADE",2017]
[null,null,"CANDIDATURAS","ÁREA"]
["ABÓBORAS E ABOBORINHAS",null,4595,5051.38]
["AGRIÃO",null,7,1.03]
["ALFACE",null,177,74.27]
["ALHO",null,87,645.63]
["ALHO FRANCÊS",null,37,108.52]
["BATATA",null,30680,7690.42]
["BATATA DOCE",null,193,442.37]
["BERINGELA","CONSUMO EM FRESCO",29,7.78]
[null,"INDÚSTRIA",21,66.489999999999995]
[null,"SUB-TOTAL DE BERINGELA",null,{"$f":"SUM(D12:D13)","v":74.27}]
["BETERRABA",null,216,92.02]
["CEBOLA",null,539,604.59]
["CENOURA",null,87,1181.5]
["CHUCHU",null,5,8.48]
["COURGETTE",null,100,173.65]
["COUVE","CONSUMO EM FRESCO",471,878.86]
[null,"INDÚSTRIA",66,614.72]
[null,null,45,52.28]
[null,"SUB-TOTAL DE COUVE",null,{"$f":"SUM(D20:D22)","v":1545.86}]
["MELANCIA",null,274,508.41]
["MELÃO",null,469,1825.42]
["MELOA",null,60,128.58000000000001]
["MORANGO",null,224,254.41]
["MOSTARDA",null,6,1.56]
["NABIÇA",null,136,45.95]
["NABO",null,597,712.42]
["PEPINO",null,29,6.62]
["PIMENTO","CONSUMO EM FRESCO",118,110.41]
[null,"INDÚSTRIA",166,913.52]
[null,"SUB-TOTAL DE PIMENTO",null,{"$f":"SUM(D32:D33)","v":1023.93}]
["RABANETE",null,3,1.59]
["RÁBANO",null,1,0.03]
["RÚCULA",null,0,0]
["RUTABAGA",null,1,0.02]
["TOMATE","CONSUMO EM FRESCO",164,125.4]
[null,"INDÚSTRIA",475,19549.52]
[null,"SUB-TOTAL DE TOMATE",null,{"$f":"SUM(D39:D40)","v":19674.920000000002}]
["OUTRAS HORTÍCOLAS","CONSUMO EM FRESCO",64844,14617.29]
[null,"CORTE P/ CONSUMO NA EXPLORAÇÃO",0,0]
[null,"GRÃO",0,0]
[null,"INDÚSTRIA",167,421.79]
[null,"SUB-TOTAL DE OUTRAS HORTÍCOLAS",null,{"$f":"SUM(D42:D45)","v":15039.080000000002}]
["TOTAL DE HORTICOLAS",null,null,{"$f":"+D41+D36+D35+D34+D31+D46+D30+D29+D28+D27+D26+D25+D24+D23+D19+D18+D17+D16+D15+D14+D11+D8+D7+D6+D5+D9+D10","v":56916.909999999982}]

{"sheet":"QUADRO04 - MADEIRA","index":14,"n_rows":47,"n_cols":4,"rows_kept":47,"cut":false,"hidden":false,"merged":[[0,0,0,3],[41,0,45,0],[45,1,45,2],[46,0,46,2],[22,1,22,2],[31,0,33,0],[33,1,33,2],[38,0,40,0],[40,1,40,2],[2,0,3,0],[2,1,3,1],[2,2,2,3],[11,0,13,0],[13,1,13,2],[19,0,22,0]]}
["QUADRO 4 - ÁREAS (HA) DOS HORTÍCOLAS POR FINALIDADE - PU2017"]
["MADEIRA"]
["CULTURA","FINALIDADE",2017]
[null,null,"CANDIDATURAS","ÁREA"]
["ABÓBORAS E ABOBORINHAS",null,2,0.3]
["AGRIÃO",null,0,0]
["ALFACE",null,6,0.56000000000000005]
["ALHO",null,0,0]
["ALHO FRANCÊS",null,0,0]
["BATATA",null,332,29.5]
["BATATA DOCE",null,126,7.79]
["BERINGELA","CONSUMO EM FRESCO",0,0]
[null,"INDÚSTRIA",0,0]
[null,"SUB-TOTAL DE BERINGELA",null,{"$f":"SUM(D12:D13)","v":0}]
["BETERRABA",null,0,0]
["CEBOLA",null,17,0.49]
["CENOURA",null,25,2.04]
["CHUCHU",null,0,0]
["COURGETTE",null,1,0.04]
["COUVE","CONSUMO EM FRESCO",2,0.28000000000000003]
[null,"INDÚSTRIA",0,0]
[null,null,0,0]
[null,"SUB-TOTAL DE COUVE",null,{"$f":"SUM(D20:D22)","v":0.28000000000000003}]
["MELANCIA",null,0,0]
["MELÃO",null,0,0]
["MELOA",null,0,0]
["MORANGO",null,6,0.56000000000000005]
["MOSTARDA",null,0,0]
["NABIÇA",null,0,0]
["NABO",null,2,0.32]
["PEPINO",null,10,2.63]
["PIMENTO","CONSUMO EM FRESCO",0,0]
[null,"INDÚSTRIA",0,0]
[null,"SUB-TOTAL DE PIMENTO",null,{"$f":"SUM(D32:D33)","v":0}]
["RABANETE",null,0,0]
["RÁBANO",null,0,0]
["RÚCULA",null,0,0]
["RUTABAGA",null,0,0]
["TOMATE","CONSUMO EM FRESCO",16,3.98]
[null,"INDÚSTRIA",0,0]
[null,"SUB-TOTAL DE TOMATE",null,{"$f":"SUM(D39:D40)","v":3.98}]
["OUTRAS HORTÍCOLAS","CONSUMO EM FRESCO",7376,1059.42]
[null,"CORTE P/ CONSUMO NA EXPLORAÇÃO",0,0]
[null,"GRÃO",0,0]
[null,"INDÚSTRIA",26,2.0099999999999998]
[null,"SUB-TOTAL DE OUTRAS HORTÍCOLAS",null,{"$f":"SUM(D42:D45)","v":1061.43}]
["TOTAL DE HORTICOLAS",null,null,{"$f":"+D41+D36+D35+D34+D31+D46+D30+D29+D28+D27+D26+D25+D24+D23+D19+D18+D17+D16+D15+D14+D11+D8+D7+D6+D5+D9+D10","v":1109.9199999999996}]

{"sheet":"QUADRO05 - CONTINENTE","index":15,"n_rows":16,"n_cols":5,"rows_kept":16,"cut":false,"hidden":false,"merged":[[15,1,15,3],[0,0,0,4],[6,1,6,3],[10,1,10,3],[14,1,14,3],[7,1,9,1],[11,1,13,1],[4,0,6,0],[7,0,15,0],[2,3,2,4],[2,2,3,2],[2,1,3,1],[2,0,3,0]]}
["QUADRO 5 - ÁREAS (HA) DE OLIVAL E VINHA POR VARIEDADE / FINALIDADE - PU2017"]
["CONTINENTE"]
["CULTURA","LOCALIZAÇÃO","FINALIDADE",2017]
[null,null,null,"CANDIDATURAS","AREA"]
["OLIVAL",null,"AZEITE",80903,273450.27]
[null,null,"AZEITONA DE MESA",1603,4235.99]
[null,"SUB-TOTAL DE OLIVAL",null,null,{"$f":"SUM(E5:E6)","v":277686.26}]
["VINHA","FORA DE REGIÃO DETERMINADA","PASSA DE UVA",83,16.5]
[null,null,"UVA DE MESA",1010,1049.76]
[null,null,"VINHO",29988,18728.91]
[null,"SUB-TOTAL DE VINHA FORA DE REGIÃO DETERMINADA",null,null,{"$f":"SUM(E8:E10)","v":19795.169999999998}]
[null,"REGIÃO DETERMINADA","PASSA DE UVA",27,14.24]
[null,null,"UVA DE MESA",623,405.89]
[null,null,"VINHO",42797,100384.86]
[null,"SUB-TOTAL DE VINHA EM REGIÃO DETERMINADA",null,null,{"$f":"SUM(E12:E14)","v":100804.99}]
[null,"SUB-TOTAL DE VINHA",null,null,{"$f":"+E15+E11","v":120600.16}]

{"sheet":"QUADRO05 - MADEIRA","index":16,"n_rows":16,"n_cols":5,"rows_kept":16,"cut":false,"hidden":false,"merged":[[4,0,6,0],[6,1,6,3],[7,0,15,0],[7,1,9,1],[10,1,10,3],[11,1,13,1],[14,1,14,3],[15,1,15,3],[0,0,0,4],[2,0,3,0],[2,1,3,1],[2,2,3,2],[2,3,2,4]]}
["QUADRO 5 - ÁREAS (HA) DE OLIVAL E VINHA POR VARIEDADE / FINALIDADE - PU2017"]
["MADEIRA"]
["CULTURA","LOCALIZAÇÃO","FINALIDADE",2017]
[null,null,null,"CANDIDATURAS","AREA"]
["OLIVAL",null,"AZEITE",0,0]
[null,null,"AZEITONA DE MESA",1,0.02]
[null,"SUB-TOTAL DE OLIVAL",null,null,{"$f":"SUM(E5:E6)","v":0.02}]
["VINHA","FORA DE REGIÃO DETERMINADA","PASSA DE UVA",3,0.39]
[null,null,"UVA DE MESA",121,5.57]
[null,null,"VINHO",2156,232.98]
[null,"SUB-TOTAL DE VINHA FORA DE REGIÃO DETERMINADA",null,null,{"$f":"SUM(E8:E10)","v":238.94}]
[null,"REGIÃO DETERMINADA","PASSA DE UVA",1,0.03]
[null,null,"UVA DE MESA",18,1.98]
[null,null,"VINHO",1206,340.32]
[null,"SUB-TOTAL DE VINHA EM REGIÃO DETERMINADA",null,null,{"$f":"SUM(E12:E14)","v":342.33}]
[null,"SUB-TOTAL DE VINHA",null,null,{"$f":"+E15+E11","v":581.27}]

{"sheet":"QUADRO06","index":17,"n_rows":135,"n_cols":3,"rows_kept":135,"cut":false,"hidden":false,"merged":[[134,0,134,1],[2,1,2,2],[2,0,3,0],[0,0,0,2]]}
["QUADRO 6 - N.º DE CANDIDATURAS E ÁREAS (HA) DECLARADAS, POR CULTURA RPB - PU2017"]
[]
["CULTURA",2017]
[null,"CANDIDATURAS","ÁREA"]
["ABACATE",80,381.95]
["ABÓBORAS E ABOBORINHAS",2892,4434.3599999999997]
["AGRIÃO",5,0.96]
["ALFACE",93,54.16]
["ALFARROBA",836,3883.8]
["ALGODÃO",0,0]
["ALHO",63,640.6]
["ALHO FRANCÊS",27,94.48]
["AMEIXA",448,755.52]
["AMENDOA",8104,22061.439999999999]
["AMENDOIM",31,725.17]
["AMORA",52,49.36]
["ANAFA",1,0.15]
["ANONA",2,2.17]
["ARROZ",1121,28378.799999999999]
["AVEIA",11844,55793.46]
["AVELÃ",204,146.88]
["AZEVEM",3034,16362.69]
["BANANA",3,2.21]
["BATATA",14491,5477.97]
["BATATA DOCE",132,417.49]
["BERINGELA",34,71.67]
["BETERRABA",123,77.28]
["CABECEIRAS CULT. PERMANENTES -ÁREA ÚTIL",11031,3849.87]
["CANA DE AÇÚCAR",3,2.2400000000000002]
["CÂNHAMO",1,0.75]
["CASTANHA",10804,23351.23]
["CEBOLA",328,545.9]
["CENOURA",75,913.25]
["CENTEIO",7745,12266.3]
["CEREJA",2140,3114.34]
["CEVADA",1762,22526.61]
["CHUCHU",1,3.9]
["COLZA",178,4297.6099999999997]
["CONSOCIAÇÃO DE FIXADORAS DE AZOTO",105,644.32000000000005]
["CONSOCIAÇÕES ANUAIS E OUTRAS CULT. FORRAG. ANUAIS",13513,95746.42]
["COURGETTE",80,162.21]
["COUVE",371,1402.53]
["DAMASCO",98,360.71]
["DIOSPIRO",92,112.58]
["ELEMENTO LINEAR EM ORIZICULTURA-ÁREA ÚTIL",748,1023.12]
["ELEMENTO LINEAR SEBE OU CORTA-VENTO-ÁREA ÚTIL",217,39.590000000000003]
["EP-BOSQUETE E FORMAÇÕES RELIQUIAIS-ÁREA ÚTIL",9,1.87]
["ERVILHA",429,4210.79]
["ERVILHACA",55,438.47]
["FAVA",444,1192.26]
["FEIJÃO",2925,2519.5700000000002]
["FESTUCA",8,14.29]
["FIGO",897,937.59]
["FIGO DA INDIA",66,269.20999999999998]
["FLORES E PLANTAS ORNAMENTAIS",196,343.72]
["FRAMBOESA",170,246.25]
["GALERIA RIPÍCOLA - ÁREA ÚTIL",910,513.64]
["GINJA",25,41.64]
["GIRASSOL",749,12654.78]
["GRÃO DE BICO",529,1531.07]
["GROSELHA",57,49.34]
["INHAME",3,1.17]
["KIWI",402,1451.2]
["LARANJA",4221,7271.55]
["LIMÃO",192,237.16]
["LINHAS DE ÁGUA - ÁREA ÚTIL",1222,651.63]
["LINHO",2,0.45]
["LUPULO",4,10.8]
["LUZERNA",367,1557.1]
["MAÇÃ",3748,6805.4]
["MARACUJÁ",13,13.64]
["MARALFALFA",3,4.78]
["MARMELO",495,981.14]
["MEDRONHEIRO",8,176.67]
["MEDRONHO",187,1022.81]
["MELANCIA",217,497.95]
["MELÃO",380,1804.11]
["MELOA",42,83.51]
["MILHO",30376,89668.12]
["MIRTILO",565,880.79]
["MISTO CULTURAS PERMANENTES",14821,10524.63]
["MORANGO",135,156.80000000000001]
["MOSTARDA",3,0.71]
["NABIÇA",88,35.47]
["NABO",443,653.67999999999995]
["NÊSPERA",24,6.48]
["NOZ",1520,2021.88]
["OLIVAL",40657,234747.87]
["OUTRAS CULTURAS PERMANENTES",388,293.93]
["OUTRAS FRUTOS FRESCOS",7543,1562.36]
["OUTRAS HORTÍCOLAS",30771,8535.41]
["OUTRAS LEGUMINOSAS SECAS",214,428.41]
["OUTRAS OLEAGINOSAS",43,408.71]
["OUTROS CEREAIS",533,572.65]
["OUTROS CITRINOS",519,410.77]
["OUTROS FRUTOS SECOS",855,803.81]
["OUTROS FRUTOS SUB-TROPICAIS",103,22.95]
["OUTROS PEQUENOS FRUTOS",1174,310.88]
["PANASCO",17,19.16]
["PASTAGENS EM BALDIO",7046,105547.79]
["PASTAGENS PERMANENTES",39938,961383.41]
["PEPINO",12,1.76]
["PERA",1078,5070.26]
["PÊSSEGO",806,2271.62]
["PIMENTO",224,970.04]
["PINHÃO",900,28000.58]
["PISTACIOS",27,69.400000000000006]
["PLANTAS AROM., MEDICINAIS E CONDIMENTARES",262,1136.99]
["POUSIO",24722,87686.7]
["POVOAMENTO AZINHEIRAS",93,2192.94]
["POVOAMENTO CARVALHO NEGRAL",40,209.37]
["POVOAMENTO DE PINHEIRO MANSO",292,6618.37]
["POVOAMENTO DE SOBREIROS",900,22975.99]
["POVOAMENTO OUTRAS FOLHOSAS",318,1433.32]
["POVOAMENTO OUTRAS RESINOSAS",248,1510.32]
["PRADOS TEMPORÁRIOS",41050,588160.63]
["RABANETE",2,1.27]
["ROMÃ",61,239.28]
["SABUGUEIRO (BAGA)",67,60.91]
["SERRADELA",8,94.5]
["SOBREIRO PARA PRODUÇÃO DE CORTIÇA",5770,226119.87]
["SOJA",8,89.33]
["SORGO",2208,7270.59]
["TABACO",3,1.57]
["TANGERA",5,2.93]
["TANGERINA",226,833.52]
["TOMATE",517,18771.41]
["TREMOCILHA",970,9625.8700000000008]
["TREMOÇO",1014,1315.99]
["TREVO",175,1852.18]
["TRIGO",4116,26119.26]
["TRITICALE",1173,16283.06]
["VINHA",33790,82656.44]
["VIVEIROS",83,88.16]
["TOTAL DE CULTURAS RPB",null,{"$f":"SUM(C5:C134)","v":2916442.7100000014}]

{"sheet":"QUADRO07","index":18,"n_rows":124,"n_cols":3,"rows_kept":124,"cut":false,"hidden":false,"merged":[[123,0,123,1],[0,0,0,2],[2,1,2,2],[2,0,3,0]]}
["QUADRO 7 - N.º DE CANDIDATURAS E ÁREAS (HA) DECLARADAS, POR CULTURA RPA - PU2017"]
[]
["CULTURA",2017]
[null,"CANDIDATURAS","ÁREA"]
["ABACATE",12,14.92]
["ABÓBORAS E ABOBORINHAS",1369,343.22]
["AGRIÃO",1,0.03]
["ALFACE",66,6.76]
["ALFARROBA",426,630.22]
["ALHO",15,3.52]
["ALHO FRANCÊS",4,0.5]
["AMEIXA",178,58.22]
["AMENDOA",3391,2246.67]
["AMENDOIM",1,0.05]
["AMORA",38,30.72]
["ARROZ",50,21.91]
["AVEIA",4749,3126.99]
["AVELÃ",179,59.53]
["AZEVEM",934,427.4]
["BATATA",14164,1701.99]
["BATATA DOCE",45,10.52]
["BERINGELA",14,1.56]
["BETERRABA",74,7.89]
["CABECEIRAS CULT. PERMANENTES -ÁREA ÚTIL",6978,543.04999999999995]
["CASTANHA",6719,9390.7099999999991]
["CEBOLA",187,26.02]
["CENOURA",6,16.77]
["CENTEIO",2915,1831.76]
["CEREJA",1532,883.17]
["CEVADA",200,250.1]
["CHUCHU",1,0.45]
["CONSOCIAÇÃO DE FIXADORAS DE AZOTO",32,8.51]
["CONSOCIAÇÕES ANUAIS E OUTRAS CULT. FORRAG. ANUAIS",6591,3859.34]
["COURGETTE",13,2.42]
["COUVE",151,32.36]
["DAMASCO",12,2.63]
["DIOSPIRO",26,10.7]
["ELEMENTO LINEAR EM ORIZICULTURA-ÁREA ÚTIL",12,0.44]
["ELEMENTO LINEAR SEBE OU CORTA-VENTO-ÁREA ÚTIL",48,4.58]
["EP-BOSQUETE E FORMAÇÕES RELIQUIAIS-ÁREA ÚTIL",2,0.4]
["ERVILHA",71,14.91]
["ERVILHACA",7,3.45]
["FAVA",377,60.17]
["FEIJÃO",3195,412.06]
["FIGO",257,62.88]
["FIGO DA INDIA",4,1.38]
["FLORES E PLANTAS ORNAMENTAIS",121,49.74]
["FRAMBOESA",102,75.08]
["GALERIA RIPÍCOLA - ÁREA ÚTIL",191,11.58]
["GINJA",7,1.3]
["GIRASSOL",79,66.23]
["GRÃO DE BICO",371,41.55]
["GROSELHA",53,31.93]
["INHAME",1,0.02]
["KIWI",256,452.07]
["LARANJA",1847,475.07]
["LIMÃO",77,60.4]
["LINHAS DE ÁGUA - ÁREA ÚTIL",115,6.25]
["LINHO",1,0.14000000000000001]
["LUZERNA",32,12.19]
["MAÇÃ",2259,1535.29]
["MARACUJÁ",5,4.6900000000000004]
["MARMELO",304,116.79]
["MEDRONHEIRO",2,5.9]
["MEDRONHO",90,235.73]
["MELANCIA",43,5.78]
["MELÃO",66,13.2]
["MELOA",16,1.85]
["MILHO",22876,11815.77]
["MIRTILO",444,501.21]
["MISTO CULTURAS PERMANENTES",13957,5063.28]
["MORANGO",61,27.93]
["MOSTARDA",3,0.85]
["NABIÇA",31,7.3]
["NABO",115,28.31]
["NÊSPERA",12,0.74]
["NOZ",728,249.21]
["OLIVAL",32655,30634.51]
["OUTRAS CULTURAS PERMANENTES",184,29.92]
["OUTRAS FRUTOS FRESCOS",5926,856.62]
["OUTRAS HORTÍCOLAS",28105,4726.41]
["OUTRAS LEGUMINOSAS SECAS",156,39.25]
["OUTRAS OLEAGINOSAS",13,5.0599999999999996]
["OUTROS CEREAIS",804,492.84]
["OUTROS CITRINOS",296,55.61]
["OUTROS FRUTOS SECOS",355,156.71]
["OUTROS FRUTOS SUB-TROPICAIS",70,21.56]
["OUTROS PEQUENOS FRUTOS",833,112.28]
["PANASCO",14,1.67]
["PASTAGENS EM BALDIO",1994,9289.89]
["PASTAGENS PERMANENTES",14632,10444.76]
["PEPINO",13,2.38]
["PERA",393,559.5]
["PÊSSEGO",367,111.5]
["PIMENTO",32,10.11]
["PINHÃO",181,239.05]
["PISTACIOS",4,2.61]
["PLANTAS AROM., MEDICINAIS E CONDIMENTARES",79,112.37]
["POUSIO",14156,8015.67]
["POVOAMENTO AZINHEIRAS",23,181.85]
["POVOAMENTO CARVALHO NEGRAL",25,71.709999999999994]
["POVOAMENTO DE PINHEIRO MANSO",95,516.85]
["POVOAMENTO DE SOBREIROS",297,2183.66]
["POVOAMENTO OUTRAS FOLHOSAS",335,931.1]
["POVOAMENTO OUTRAS RESINOSAS",201,771.78]
["PRADOS TEMPORÁRIOS",18851,13468.99]
["RABANETE",1,0.32]
["RÁBANO",1,0.03]
["ROMÃ",6,3.99]
["SABUGUEIRO (BAGA)",225,108.15]
["SOBREIRO PARA PRODUÇÃO DE CORTIÇA",946,1590.22]
["SOJA",2,0.27]
["SORGO",263,155.72]
["TABACO",3,0.39]
["TANGERINA",30,12.43]
["TOMATE",56,18.55]
["TREMOCILHA",77,71.53]
["TREMOÇO",725,238.05]
["TREVO",17,4.17]
["TRIGO",1033,664.8]
["TRITICALE",108,105.92]
["VINHA",30613,23953.61]
["VIVEIROS",53,24.75]
["TOTAL DE CULTURAS RPA",null,{"$f":"SUM(C5:C123)","v":158007.38}]

{"sheet":"GRÁFICO05","index":19,"n_rows":3,"n_cols":27,"rows_kept":3,"cut":false,"hidden":false,"merged":[]}
[null,null,null,null,null,null,null,null,null,null,null,null,"RPB",7791,null,null,null,null,null,null,null,null,null,null,null,null,"GRÁFICO 5 - TRANSFERÊNCIAS - N.º DE COMUNICAÇÕES (MODELO T) - PU2017"]
[null,null,null,null,null,null,null,null,null,null,null,null,"MAA",2942]
[null,null,null,null,null,null,null,null,null,null,null,null,"FTA",146]

{"sheet":"GRÁFICO06","index":20,"n_rows":3,"n_cols":27,"rows_kept":3,"cut":false,"hidden":false,"merged":[]}
[null,null,null,null,null,null,null,null,null,null,null,null,"RPB (Direitos)",160944.19,null,null,null,null,null,null,null,null,null,null,null,null,"GRÁFICO 6 - TRANSFERÊNCIAS - DIREITOS/ÁREA (HA) (MODELO T) - PU2017"]
[null,null,null,null,null,null,null,null,null,null,null,null,"MAA (Área)",62836.3]
[null,null,null,null,null,null,null,null,null,null,null,null,"FTA (Área)",3222.52]

{"sheet":"GRÁFICO07","index":21,"n_rows":59,"n_cols":28,"rows_kept":59,"cut":false,"hidden":false,"merged":[]}
[null,null,null,null,null,null,null,null,null,null,null,null,null,null,null,null,null,null,null,null,null,null,null,null,null,null,"GRÁFICO 7 - TRANSFERÊNCIAS - N.º DE COMUNICAÇÕES POR TIPO (MODELO T - RPB) - PU2017","Gráfico 07 - N.º de Comunicações Modelo H por Tipo de Transferência"]
[null,null,null,null,null,null,null,null,null,null,null,null,null,null,null,null,null,null,null,null,null,null,null,null,null,null,"GRÁFICO 7 - TRANSFERÊNCIAS - N.º DE COMUNICAÇÕES POR TIPO (MODELO T - MAA) - PU2017"]
[null,null,null,null,null,null,null,null,null,null,null,null,null,null,null,null,null,null,null,null,null,null,null,null,null,null,"GRÁFICO 7 - TRANSFERÊNCIAS - N.º DE COMUNICAÇÕES POR TIPO (MODELO T - FTA) - PU2017"]
[null,null,null,null,null,null,null,null,null,null,null,null,null,null,null,null,null,null,null,null,null,null,null,null,null,null,"GRÁFICO 7 - TRANSFERÊNCIAS - N.º DE COMUNICAÇÕES POR TIPO (MODELO T) - PU2017"]
[]
[]
[]
[]
[]
[]
[]
[]
[]
[]
[]
[]
[]
[]
[]
[]
[]
[]
[]
[]
[]
[]
[]
[]
[]
[null,null,null,null,null,null,null,null,null,null,null,null,null,null,null,null,"Alteração de estatuto jurídico ou denominação",12]
[null,null,null,null,null,null,null,null,null,null,null,null,null,null,null,null,"Definitiva",2111]
[null,null,null,null,null,null,null,null,null,null,null,null,null,null,null,null,"Herança",789]
[null,null,null,null,null,null,null,null,null,null,null,null,null,null,null,null,"Temporária",30]
[null,null,null,null,null,null,null,null,null,null,null,null,null,null,null,null,null,2942]
[]
[]
[]
[]
[]
[]
[]
[]
[]
[]
[]
[]
[]
[]
[]
[]
[]
[]
[]
[]
[null,null,null,null,null,null,null,null,null,null,null,null,null,null,null,null,"Alteração de estatuto jurídico ou denominação",0]
[null,null,null,null,null,null,null,null,null,null,null,null,null,null,null,null,"Definitiva",0]
[null,null,null,null,null,null,null,null,null,null,null,null,null,null,null,null,"Herança",146]
[null,null,null,null,null,null,null,null,null,null,null,null,null,null,null,null,"Temporária",0]
[null,null,null,null,null,null,null,null,null,null,null,null,null,null,null,null,null,146]

{"sheet":"GRÁFICO08","index":22,"n_rows":55,"n_cols":28,"rows_kept":55,"cut":false,"hidden":false,"merged":[]}
[null,null,null,null,null,null,null,null,null,null,null,null,null,null,null,null,null,null,null,null,null,null,null,null,null,null,"GRÁFICO 8 -  TRANSFERÊNCIAS - DIREITOS POR TIPO (MODELO T - RPB) - PU2017","Gráfico 08 - Área Modelo H por Tipo de Transferência"]
[null,null,null,null,null,null,null,null,null,null,null,null,null,null,null,null,null,null,null,null,null,null,null,null,null,null,"GRÁFICO 8 -  TRANSFERÊNCIAS - ÁREA POR TIPO (MODELO T - MAA) - PU2017"]
[null,null,null,null,null,null,null,null,null,null,null,null,null,null,null,null,null,null,null,null,null,null,null,null,null,null,"GRÁFICO 8 -  TRANSFERÊNCIAS - ÁREA POR TIPO (MODELO T - FTA) - PU2017"]
[null,null,null,null,null,null,null,null,null,null,null,null,null,null,null,null,null,null,null,null,null,null,null,null,null,null,"GRÁFICO 8 -  TRANSFERÊNCIAS - DIREITOS POR TIPO (MODELO T) - PU2017"]
[]
[]
[]
[]
[]
[]
[]
[]
[]
[]
[]
[]
[]
[]
[]
[]
[]
[]
[]
[]
[]
[]
[]
[]
[]
[null,null,null,null,null,null,null,null,null,null,null,null,null,null,null,null,"Alteração de estatuto jurídico ou denominação",936.48]
[null,null,null,null,null,null,null,null,null,null,null,null,null,null,null,null,"Definitiva",50056.08]
[null,null,null,null,null,null,null,null,null,null,null,null,null,null,null,null,"Herança",9791.32]
[null,null,null,null,null,null,null,null,null,null,null,null,null,null,null,null,"Temporária",2052.42]
[null,null,null,null,null,null,null,null,null,null,null,null,null,null,null,null,null,62836.3]
[]
[]
[]
[]
[]
[]
[]
[]
[]
[]
[]
[]
[]
[]
[]
[]
[null,null,null,null,null,null,null,null,null,null,null,null,null,null,null,null,"Alteração de estatuto jurídico ou denominação",0]
[null,null,null,null,null,null,null,null,null,null,null,null,null,null,null,null,"Definitiva",0]
[null,null,null,null,null,null,null,null,null,null,null,null,null,null,null,null,"Herança",3222.52]
[null,null,null,null,null,null,null,null,null,null,null,null,null,null,null,null,"Temporária",0]
[null,null,null,null,null,null,null,null,null,null,null,null,null,null,null,null,null,3222.52]

{"sheet":"QUADRO08 - CONTINENTE","index":23,"n_rows":34,"n_cols":13,"rows_kept":34,"cut":false,"hidden":false,"merged":[[14,1,14,9],[0,0,1,12],[3,0,4,9],[3,10,3,12],[6,1,6,9],[7,1,7,9],[8,1,8,9],[9,1,9,9],[10,1,10,9],[11,1,11,9],[12,1,12,9],[13,1,13,9],[2,0,2,1],[26,1,26,9],[15,1,15,9],[16,1,16,9],[17,1,17,9],[18,1,18,9],[19,1,19,9],[20,1,20,9],[21,1,21,9],[22,1,22,9],[23,1,23,9],[24,1,24,9],[25,1,25,9],[33,1,33,9],[27,1,27,9],[28,1,28,9],[29,1,29,9],[30,1,30,9],[31,1,31,9],[32,1,32,9]]}
["QUADRO 8 - N.º DE CANDIDATURAS, ÁREAS (HA) E ANIMAIS DECLARADOS, POR MEDIDA MAA - PU2017"]
[]
["CONTINENTE"]
["MEDIDAS AGRO-AMBIENTAIS",null,null,null,null,null,null,null,null,null,"CANDIDATURAS"]
[null,null,null,null,null,null,null,null,null,null,"N.º","ÁREA","ANIMAIS"]
[null,null,null,null,null,null,null,null,null,null,null,"(HA)","CN"]
["7.1.1","CONVERSÃO PARA AGRICULTURA BIOLÓGICA",null,null,null,null,null,null,null,null,945,34619.630000000012,"-"]
["7.1.2","MANUTENÇÃO EM  AGRICULTURA BIOLÓGICA",null,null,null,null,null,null,null,null,2117,175690.10999999972,"-"]
["7.2.1","PRODUÇÃO INTEGRADA",null,null,null,null,null,null,null,null,14025,807337.00000000279,"-"]
["7.3.1","PAGAMENTOS NATURA",null,null,null,null,null,null,null,null,5865,342878.55000000005,"-"]
["7.3.2.1","APOIOS ZONAIS DE CARÁCTER AGROAMBIENTAL - GESTÃO DE PASTOREIO EM ÁREAS DE BALDIO - AZ PENEDA/GERÊS",null,null,null,null,null,null,null,null,43,29647.26,"-"]
["7.3.2.2","APOIOS ZONAIS DE CARÁCTER AGROAMBIENTAL - MANUTENÇÃO DE SOCALCOS - AZ PENEDA/GERÊS",null,null,null,null,null,null,null,null,600,1140.1299999999994,"-"]
["7.3.2.3","APOIOS ZONAIS DE CARÁCTER AGROAMBIENTAL-CONSERVAÇÃO DOS SOUTOS NOTÁVEIS-AZ MONTESINHO/NOGUEIRA",null,null,null,null,null,null,null,null,210,323.51000000000005,"-"]
["7.3.2.4.1","APOIOS ZONAIS DE CARÁCTER AGROAMBIENTAL - MANUT. DE ROTAÇÃO DE SEQUEIRO CEREAL-POUSIO-OUTRAS AZ",null,null,null,null,null,null,null,null,134,1250.7500000000002,"-"]
["7.3.2.4.2","APOIOS ZONAIS DE CARÁCTER AGROAMBIENTAL - MANUT.ROTAÇÃO DE SEQUEIRO CEREAL-POUSIO - AZ CASTRO VERDE",null,null,null,null,null,null,null,null,188,31711.279999999995,"-"]
["7.3.2.4.3","APOIOS ZONAIS DE CARÁCTER AGROAMBIENTAL - MANUT.ROTAÇÃO DE SEQUEIRO CEREAL-POUSIO-ÁREAS ESTEPÁRIAS",null,null,null,null,null,null,null,null,52,5028.7700000000013,"-"]
["7.4.1","CONSERVAÇÃO DO SOLO - SEMENTEIRA DIRETA OU MOBILIZAÇÃO NA LINHA",null,null,null,null,null,null,null,null,204,17287.750000000004,"-"]
["7.4.2","CONSERVAÇÃO DO SOLO - ENRELVAMENTO DA ENTRELINHA DE CULTURAS PERMANENTES",null,null,null,null,null,null,null,null,2118,32198.730000000003,"-"]
["7.5.1","USO EFICIENTE DA ÁGUA NA AGRICULTURA",null,null,null,null,null,null,null,null,825,76738.059999999939,"-"]
["7.6.1.1","CULTURAS PERMANENTES TRADICIONAIS - OLIVAL TRADICIONAL",null,null,null,null,null,null,null,null,26750,96121.720000000132,"-"]
["7.6.1.2","CULTURAS PERMANENTES TRADICIONAIS - FIGUEIRAL EXTENSIVO DE SEQUEIRO",null,null,null,null,null,null,null,null,4,6.78,"-"]
["7.6.1.3","CULTURAS PERMANENTES TRADICIONAIS - POMAR TRADICIONAL DE SEQUEIRO DO ALGARVE",null,null,null,null,null,null,null,null,799,4186.6999999999989,"-"]
["7.6.1.4","CULTURAS PERMANENTES TRADICIONAIS - AMENDOAL EXTENSIVO DE SEQUEIRO",null,null,null,null,null,null,null,null,1134,1909.4500000000007,"-"]
["7.6.1.5","CULTURAS PERMANENTES TRADICIONAIS - CASTANHEIRO EXTENSIVO DE SEQUEIRO",null,null,null,null,null,null,null,null,4376,11955.36999999997,"-"]
["7.6.2","CULTURAS PERMANENTES TRADICIONAIS - DOURO VINHATEIRO",null,null,null,null,null,null,null,null,5729,13899.270000000015,"-"]
["7.7.1.1","PASTOREIO EXTENSIVO - APOIO À MANUTENÇÃO DE LAMEIROS DE ALTO VALOR NATURAL - REGADIO",null,null,null,null,null,null,null,null,3379,10262.54000000001,"-"]
["7.7.1.2","PASTOREIO EXTENSIVO - APOIO À MANUTENÇÃO DE LAMEIROS DE ALTO VALOR NATURAL - SEQUEIRO",null,null,null,null,null,null,null,null,2280,8098.04000000001,"-"]
["7.7.2","PASTOREIO EXTENSIVO -APOIO À MANUTENÇÃO DE SISTEMAS AGROSILVOPASTORIS SOB MONTADO",null,null,null,null,null,null,null,null,1536,209658.74,"-"]
["7.7.3","PASTOREIO EXTENSIVO - APOIO À PROTEÇÃO DO LOBO IBÉRICO",null,null,null,null,null,null,null,null,2663,36587.09000000004,"-"]
["7.8.1","RECURSOS GENÉTICOS - MANUTENÇÃO DE RAÇAS AUTÓCTONES AMEAÇADAS",null,null,null,null,null,null,null,null,5297,"-",78477.3]
["7.8.2","UTILIZAÇÃO DE VARIEDADES VEGETAIS TRADICIONAIS NACIONAIS EM SITUAÇÃO DE EROSÃO GENÉTICA",null,null,null,null,null,null,null,null,0,0,"-"]
["7.9.1","MOSAICO AGROFLORESTAL",null,null,null,null,null,null,null,null,485,3049.1499999999983,"-"]
["7.10.2","SILVOAMBIENTAIS - MANUTENÇÃO E RECUPERAÇÃO DE GALERIAS RIPÍCOLAS",null,null,null,null,null,null,null,null,14,152.62,"-"]
["7.12.1","APOIO AGROAMBIENTAL À APICULTURA",null,null,null,null,null,null,null,null,33,1719.8299999999995,"-"]

{"sheet":"QUADRO08 - MADEIRA","index":24,"n_rows":14,"n_cols":13,"rows_kept":14,"cut":false,"hidden":false,"merged":[[11,1,11,9],[12,1,12,9],[13,1,13,9],[0,0,1,12],[2,0,2,1],[3,0,4,9],[3,10,3,12],[6,1,6,9],[7,1,7,9],[8,1,8,9],[9,1,9,9],[10,1,10,9]]}
["QUADRO 8 - N.º DE CANDIDATURAS, ÁREAS (HA) E ANIMAIS DECLARADOS, POR MEDIDA MAA - PU2017"]
[]
["MADEIRA"]
["MEDIDAS AGRO-AMBIENTAIS",null,null,null,null,null,null,null,null,null,"CANDIDATURAS"]
[null,null,null,null,null,null,null,null,null,null,"N.º","ÁREA","ANIMAIS"]
[null,null,null,null,null,null,null,null,null,null,null,"(HA)","CN"]
["7.8.1","RECURSOS GENÉTICOS - MANUTENÇÃO DE RAÇAS AUTÓCTONES AMEAÇADAS",null,null,null,null,null,null,null,null,0,"-",0]
["10.1.1","MANUTENÇÃO DE MUROS DE SUPORTE DE TERRAS",null,null,null,null,null,null,null,null,1691,654.3500000000007,"-"]
["10.1.2","PRESERVAÇÃO DE POMARES DE FRUTOS FRESCOS E VINHAS TRADICIONAIS",null,null,null,null,null,null,null,null,35,25.82,"-"]
["10.1.3","PROTEÇÃO E REFORÇO DA BIODIVERSIDADE",null,null,null,null,null,null,null,null,0,0,"-"]
["11.1","APOIAR A CONVERSÃO DOS SISTEMAS DE PRODUÇÃO PARA A AGRICULTURA BIOLÓGICA",null,null,null,null,null,null,null,null,26,17.080000000000002,"-"]
["11.2","APOIAR A MANUTENÇÃO DOS SISTEMAS DE PRODUÇÃO AGRÍCOLA EM AGRICULTURA BIOLÓGICA",null,null,null,null,null,null,null,null,76,79.089999999999975,"-"]
["12.2","PAGAMENTOS NATURA 2000 NA FLORESTA",null,null,null,null,null,null,null,null,13,425.86000000000007,"-"]
["15.1","PAGAMENTOS PARA COMPROMISSOS AMBIENTAIS NAS FLORESTAS",null,null,null,null,null,null,null,null,0,0,"-"]

{"sheet":"QUADRO09","index":25,"n_rows":12,"n_cols":27,"rows_kept":12,"cut":false,"hidden":false,"merged":[[3,1,3,2],[3,3,3,4],[0,0,0,5]]}
["QUADRO 9 - N.º DE CANDIDATURAS PU E POR REGIÃO - PU2017/PU2016",null,null,null,null,null,null,null,null,null,null,null,null,null,null,null,null,null,null,null,null,null,null,null,null,null,"GRÁFICO 9 - NÚMERO DE CANDIDATURAS PU, POR REGIÃO - PU2017"]
[null,null,null,null,null,null,null,null,null,null,null,null,null,null,null,null,null,null,null,null,null,null,null,null,null,null,"GRÁFICO 10 - NÚMERO DE CANDIDATURAS PU, POR REGIÃO - PU2016"]
[]
[null,2017,null,2016,null,"Variação"]
["REGIÃO","N.º","%","N.º","%","%"]
["Norte",88833,{"$f":"+B6/$B$12","v":0.49033223123161246},88678,{"$f":"+D6/$D$12","v":0.49218251347316189},{"$f":"(+B6-D6)/D6","v":1.7478968853605178E-3}]
["Centro",42733,{"$f":"+B7/$B$12","v":0.23587368699943148},42738,{"$f":"+D7/$D$12","v":0.23720535263330245},{"$f":"(+B7-D7)/D7","v":-1.1699190416023211E-4}]
["Lisboa e Vale do Tejo",10622,5.8630339627640492E-2,10555,5.8582584515992964E-2,6.3477025106584558E-3]
["Alentejo",23104,0.12752733635445357,22593,0.1253961470364594,2.2617624928075068E-2]
["Algarve",4526,2.4982198941319984E-2,4409,2.4470925166367879E-2,2.6536629621229303E-2]
["Madeira",11351,6.2654206845542001E-2,11200,6.216247717471541E-2,1.3482142857142857E-2]
["TOTAL",181169,{"$f":"SUM(C6:C11)","v":1},180173,{"$f":"SUM(E6:E11)","v":1},5.5280202916086207E-3]

{"sheet":"QUADRO10","index":26,"n_rows":12,"n_cols":27,"rows_kept":12,"cut":false,"hidden":false,"merged":[[0,0,1,4],[3,0,5,0],[3,1,3,4],[4,1,4,2],[4,3,4,4]]}
["QUADRO 10 - N.º DE CANDIDATURAS RPB, ÁREA (HA) E POR REGIÃO - PU2017",null,null,null,null,null,null,null,null,null,null,null,null,null,null,null,null,null,null,null,null,null,null,null,null,null,"GRÁFICO 11 - NÚMERO DE CANDIDATURAS RPB, POR REGIÃO - PU2017"]
[null,null,null,null,null,null,null,null,null,null,null,null,null,null,null,null,null,null,null,null,null,null,null,null,null,null,"GRÁFICO 12 - ÁREA RPB, POR REGIÃO - PU2017"]
[]
["REGIÃO",2017]
[null,"CANDIDATURAS",null,"ÁREA"]
[null,"N.º","%","(HA)","%"]
["Norte",44192,{"$f":"+B7/$B$12","v":0.50651017788373376},381634.62,{"$f":"+D7/$D$12","v":0.13379554190784082}]
["Centro",18361,{"$f":"+B8/$B$12","v":0.21044608472400514},308095.90999999997,{"$f":"+D8/$D$12","v":0.10801394076365332}]
["Lisboa e Vale do Tejo",6217,7.1256647716853111E-2,296571.84000000003,0.10397376958989062]
["Alentejo",16128,0.18485237483953787,1817036.68,0.63702660745774042]
["Algarve",2350,2.6934714835870163E-2,49032.67,1.719014028087475E-2]
["TOTAL",87248,{"$f":"SUM(C7:C11)","v":1},2852371.72,{"$f":"SUM(E7:E11)","v":1}]

{"sheet":"QUADRO11","index":27,"n_rows":12,"n_cols":27,"rows_kept":12,"cut":false,"hidden":false,"merged":[[0,0,1,4],[3,0,5,0],[3,1,3,4],[4,1,4,2],[4,3,4,4]]}
["QUADRO 11 - N.º DE CANDIDATURAS RPA, ÁREA (HA), POR REGIÃO - PU2017",null,null,null,null,null,null,null,null,null,null,null,null,null,null,null,null,null,null,null,null,null,null,null,null,null,"GRÁFICO 13 - NÚMERO DE CANDIDATURAS RPA, POR REGIÃO - PU2017"]
[null,null,null,null,null,null,null,null,null,null,null,null,null,null,null,null,null,null,null,null,null,null,null,null,null,null,"GRÁFICO 14 - ÁREA RPA, POR REGIÃO - PU2017"]
[]
["REGIÃO",2017]
[null,"CANDIDATURAS",null,"ÁREA"]
[null,"N.º","%","(HA)","%"]
["Norte",34867,{"$f":"+B7/$B$12","v":0.55287401886942045},84062.03,{"$f":"+D7/$D$12","v":0.54848504403009724}]
["Centro",19944,{"$f":"+B8/$B$12","v":0.31624514389915165},41213.94,{"$f":"+D8/$D$12","v":0.26891129913890716}]
["Lisboa e Vale do Tejo",2972,4.7125981130579558E-2,7918.35,5.1665377916708895E-2]
["Alentejo",4244,6.7295647347974316E-2,14664.79,9.5684317745385522E-2]
["Algarve",1038,1.645920875287402E-2,5403.1,3.5253961168901324E-2]
["TOTAL",63065,{"$f":"SUM(C7:C11)","v":1},153262.21,{"$f":"SUM(E7:E11)","v":1}]

{"sheet":"QUADRO12","index":28,"n_rows":13,"n_cols":27,"rows_kept":13,"cut":false,"hidden":false,"merged":[[0,0,0,10],[3,5,3,8],[4,5,4,6],[4,7,4,8],[3,9,3,10],[3,0,5,0],[3,1,3,4],[4,1,4,2],[4,3,4,4]]}
["QUADRO 12 - N.º DE CANDIDATURAS MZD, ÁREA (HA) E POR REGIÃO - PU2017/PU2016",null,null,null,null,null,null,null,null,null,null,null,null,null,null,null,null,null,null,null,null,null,null,null,null,null,"GRÁFICO 15 - NÚMERO DE CANDIDATURAS MZD, POR REGIÃO - PU2017"]
[null,null,null,null,null,null,null,null,null,null,null,null,null,null,null,null,null,null,null,null,null,null,null,null,null,null,"GRÁFICO 16 - ÁREA MZD, POR REGIÃO - PU2017"]
[null,null,null,null,null,null,null,null,null,null,null,null,null,null,null,null,null,null,null,null,null,null,null,null,null,null,"GRÁFICO 17 - NÚMERO DE CANDIDATURAS MZD, POR REGIÃO - PU2016"]
["REGIÃO",2017,null,null,null,2016,null,null,null,"Variação",null,null,null,null,null,null,null,null,null,null,null,null,null,null,null,null,"GRÁFICO 18 - ÁREA MZD, POR REGIÃO - PU2016"]
[null,"CANDIDATURAS",null,"ÁREA",null,"CANDIDATURAS",null,"ÁREA",null,"CANDIDATURAS","ÁREA"]
[null,"N.º","%","(HA)","%","N.º","%","(HA)","%","%","%"]
["Norte",69860,{"$f":"+B7/$B$13","v":0.52139386656914477},446467.06,{"$f":"+D7/$D$13","v":0.1768611375302209},69274,{"$f":"+F7/$F$13","v":0.52253081297992066},435202.53,{"$f":"+H7/$H$13","v":0.17727412386490587},{"$f":"(+B7-F7)/F7","v":8.4591621676242176E-3},{"$f":"(+D7-H7)/H7","v":2.5883420300888346E-2}]
["Centro",27346,{"$f":"+B8/$B$13","v":0.20409442707128303},294769.90000000002,{"$f":"+D8/$D$13","v":0.11676861406901881},27197,{"$f":"+F8/$F$13","v":0.20514580536153393},289311.78999999998,{"$f":"+H8/$H$13","v":0.11784741714630571},{"$f":"(+B8-F8)/F8","v":5.4785454278045371E-3},{"$f":"(+D8-H8)/H8","v":1.8865840206512306E-2}]
["Lisboa e Vale do Tejo",2264,1.6897161664937644E-2,91499.23,3.624602876848141E-2,2112,1.5930725481617815E-2,85438.59,3.4802305001542397E-2,7.1969696969696975E-2,7.0935627565951162E-2]
["Alentejo",19800,0.14777553046191047,1644134.05,0.65129870574364235,19525,0.14727623817641469,1599541.18,0.65155241921580209,1.4084507042253521E-2,2.7878538269330531E-2]
["Algarve",3551,2.6502571144961826E-2,44234.66,1.7522887995057378E-2,3467,2.615143240756106E-2,42182.17,1.7182361576506724E-2,2.4228439573117971E-2,4.8657762272543238E-2]
["Madeira",11166,{"$f":"+B12/$B$13","v":8.3336443087762252E-2},3288.34,{"$f":"+D12/$D$13","v":1.3026258935790844E-3},10999,8.2964985592951859E-2,3293.03,1.3413731949371962E-3,1.5183198472588416E-2,-1.4242202470065727E-3]
["TOTAL",133987,{"$f":"SUM(C7:C12)","v":0.99999999999999989},2524393.2400000002,{"$f":"SUM(E7:E11)","v":0.9986973741064209},132574,{"$f":"SUM(G7:G12)","v":0.99999999999999989},2454969.29,{"$f":"SUM(I7:I12)","v":1},1.0658198440116463E-2,2.8278948450715727E-2]

{"sheet":"QUADRO13","index":29,"n_rows":13,"n_cols":27,"rows_kept":13,"cut":false,"hidden":false,"merged":[[3,13,3,15],[3,7,3,12],[4,7,4,8],[4,9,4,10],[4,11,4,12],[0,0,0,12],[3,0,5,0],[3,1,3,6],[4,1,4,2],[4,3,4,4],[4,5,4,6]]}
["QUADRO 13 - N.º DE CANDIDATURAS MAA, ÁREA (HA) E ANIMAIS (CN), POR REGIÃO - PU2017/PU2016",null,null,null,null,null,null,null,null,null,null,null,null,null,null,null,null,null,null,null,null,null,null,null,null,null,"GRÁFICO 19 - NÚMERO DE CANDIDATURAS MAA, POR REGIÃO - PU2017"]
[null,null,null,null,null,null,null,null,null,null,null,null,null,null,null,null,null,null,null,null,null,null,null,null,null,null,"GRÁFICO 20 - ÁREA MAA, POR REGIÃO - PU2017"]
[null,null,null,null,null,null,null,null,null,null,null,null,null,null,null,null,null,null,null,null,null,null,null,null,null,null,"GRÁFICO 21 - ANIMAIS MAA, POR REGIÃO - PU2017"]
["REGIÃO",2017,null,null,null,null,null,2016,null,null,null,null,null,"Variação",null,null,null,null,null,null,null,null,null,null,null,null,"GRÁFICO 22 - NÚMERO DE CANDIDATURAS MAA, POR REGIÃO - PU2016"]
[null,"CANDIDATURAS",null,"ÁREA",null,"ANIMAIS",null,"CANDIDATURAS",null,"ÁREA",null,"ANIMAIS",null,"CANDIDATURAS","ÁREA","ANIMAIS",null,null,null,null,null,null,null,null,null,null,"GRÁFICO 23 - ÁREA MAA, POR REGIÃO - PU2016"]
[null,"N.º","%","(HA)","%","(CN)","%","N.º","%","(HA)","%","(CN)","%","%","%","%",null,null,null,null,null,null,null,null,null,null,"GRÁFICO 24 - ANIMAIS MAA, POR REGIÃO - PU2016"]
["Norte",29134,{"$f":"+B7/$B$13","v":0.49279431664411366},192142.07999999999,{"$f":"+D7/$D$13","v":0.13569451761664983},33797.47,{"$f":"+F7/$F$13","v":0.43066555551732794},29506,{"$f":"+H7/$H$13","v":0.49332062664058451},192136.41,{"$f":"+J7/$J$13","v":0.13641127283382001},35591.25,{"$f":"+L7/$L$13","v":0.4267768805132654},{"$f":"(+B7-H7)/H7","v":-1.2607605232834E-2},{"$f":"(+D7-J7)/J7","v":2.95102838654251E-5},{"$f":"(+F7-L7)/L7","v":-5.0399466160924354E-2}]
["Centro",10935,0.18496278755074425,137405.79999999999,9.7038679651692453E-2,7948.36,0.10128228162793572,11371,0.19011553058801892,137297,9.7476883877787579E-2,9211.51,0.11045578625692409,{"$f":"(+B8-H8)/H8","v":-3.8343153636443583E-2},{"$f":"(+D8-J8)/J8","v":7.9244266080095234E-4},{"$f":"(+F8-L8)/L8","v":-0.13712735479850757}]
["Lisboa e Vale do Tejo",3644,6.1637347767253048E-2,106145.23,7.4961850013065059E-2,5767.55,7.3493226703772938E-2,3690,6.1694337162060492E-2,108014.98,7.6687499818069937E-2,6439.86,7.7220759645760043E-2,-1.2466124661246613E-2,-1.7310099025153736E-2,-0.10439823225970743]
["Alentejo",12398,0.20970906630581868,964638.03,0.68124635767201747,30157.7,0.38428564693229761,12233,0.20452759525839728,955291.79,0.67822943606367103,31094.53,0.37285643281497971,1.3488105942941225E-2,9.78364945437246E-3,-3.0128450245107359E-2]
["Algarve",1248,2.1109607577807849E-2,14506.62,1.0244860486302869E-2,806.21,1.0273161793282899E-2,1227,2.0514621056327433E-2,14565.06,1.034076973490323E-2,1058.3,1.2690140769070735E-2,1.7114914425427872E-2,-4.0123418647090153E-3,-0.23820277804025317]
["Madeira",1761,2.9786874154262517E-2,1152.24,8.1373456027231833E-4,0,0,1784,2.9827289294611359E-2,1203.06,8.5413767174818912E-4,0,0,{"$f":"(+B12-H12)/H12","v":-1.2892376681614351E-2},-4.2242282180439829E-2,{"$f":"IFERROR((+F12-L12)/L12, \"\")","v":""}]
["TOTAL",59120,{"$f":"SUM(C7:C12)","v":1},1415990,{"$f":"SUM(E7:E12)","v":1},78477.3,{"$f":"SUM(G7:G12)","v":0.99999987257461698},59811,{"$f":"SUM(I7:I11)","v":0.97017271070538857},1408508.3,0.99914586232825187,83395.45,0.99999999999999989,-1.1553058801892628E-2,5.3117897849802899E-3,-5.8973840898993823E-2]

{"sheet":"QUADRO14","index":30,"n_rows":15,"n_cols":12,"rows_kept":15,"cut":false,"hidden":false,"merged":[[3,10,3,11],[0,1,0,10],[4,6,4,7],[3,1,5,1],[3,2,3,5],[4,2,4,3],[4,4,4,5],[4,8,4,9],[3,6,3,9]]}
[null,"QUADRO 14 - N.º DE CANDIDATURAS PU POR ENTIDADE RECETORA - PU2017/PU2016"]
[]
[]
[null,"ENTIDADE",2017,null,null,null,2016,null,null,null,"Variação"]
[null,null,"CONTINENTE",null,"MADEIRA",null,"CONTINENTE",null,"MADEIRA",null,"CONTINENTE","MADEIRA"]
[null,null,"N.º","%","N.º","%","N.º","%","N.º","%","%","%"]
["BEN_00","Beneficiário IFAP",2515,{"$f":"C7/$C$15","v":1.4809973029949712E-2},564,{"$f":"IFERROR(E7/$E$15,\"-\")","v":4.9687252224473615E-2},2288,{"$f":"+G7/$G$15","v":1.354062483355329E-2},253,{"$f":"+I7/$I$15","v":2.2589285714285715E-2},{"$f":"(+C7-G7)/G7","v":9.9213286713286719E-2},{"$f":"(+E7-I7)/I7","v":1.2292490118577075}]
["00-0000","DRAP",2007,{"$f":"C8/$C$15","v":1.181853513761792E-2},"-",{"$f":"IFERROR(E8/$E$15,\"-\")","v":"-"},1902,{"$f":"+G8/$G$15","v":1.1256236203417114E-2},"-","-",{"$f":"(+C8-G8)/G8","v":5.5205047318611984E-2},"-"]
["09-0000","Madeira - DRADR","-",{"$f":"IFERROR(C9/$C$15,\"-\")","v":"-"},10783,0.94996035591577832,"-","-",10945,{"$f":"+I9/$I$15","v":0.97723214285714288},"-",{"$f":"(+E9-I9)/I9","v":-1.4801279122887163E-2}]
["10-0000","CAP",59472,{"$f":"C10/$C$15","v":0.3502102250644808},0,0,60615,0.35872595029975202,1,{"$f":"+I10/$I$15","v":8.9285714285714286E-5},{"$f":"(+C10-G10)/G10","v":-1.8856718634001485E-2},{"$f":"(+E10-I10)/I10","v":-1}]
["11-0000","CONFAGRI",74550,{"$f":"C11/$C$15","v":0.43899939935695864},"-","-",72923,0.43156598983269517,"-","-",2.2311204969625496E-2,"-"]
["22-0000","AJAP",18831,{"$f":"C12/$C$15","v":0.11088930502066918},"-","-",18690,0.1106093872985625,"-","-",7.5441412520064208E-3,"-"]
["24-0000","CNA",11356,{"$f":"C13/$C$15","v":6.6871591939605929E-2},"-","-",11439,6.7697206062507023E-2,"-","-",-7.2558790104030072E-3,"-"]
["79-0000","CNJ",1085,{"$f":"C14/$C$15","v":6.3891931361810877E-3},"-","-",1116,6.6046054695128803E-3,"-","-",-2.7777777777777776E-2,"-"]
[null,"TOTAL",169818,{"$f":"SUM(D7:D14)","v":0.99998822268546328},11351,{"$f":"SUM(F7:F14)","v":0.99964760814025189},168973,{"$f":"SUM(H7:H14)","v":1},11200,{"$f":"SUM(J7:J14)","v":0.99991071428571432},5.0007989442100217E-3,{"$f":"(+E15-I15)/I15","v":1.3482142857142857E-2}]

{"sheet":"QUADRO15","index":31,"n_rows":20,"n_cols":5,"rows_kept":20,"cut":false,"hidden":false,"merged":[[3,0,5,0],[4,1,5,1],[4,2,5,2],[0,0,1,4],[4,3,5,3],[4,4,5,4],[3,1,3,4]]}
["QUADRO 15 - Nº DE ATENDIMENTOS DE PARCELÁRIO, NO PERÍODO DE CANDIDATURAS DO PU2017, POR ENTIDADE (ACUMULADO)"]
[]
[]
["ENTIDADE","N.º DE ATENDIMENTOS PARCELÁRIO"]
[null,"01-03-2017 A 26-03-2017","01-03-2017 A 30-04-2017","01-03-2017 A 28-05-2017","01-03-2017 A 26-06-2017"]
[]
["DRAP NORTE",1766,4806,7610,8807]
["DRAP CENTRO",846,2194,3563,4039]
["DRAP LVT",362,903,1599,1839]
["DRAP ALENTEJO",136,379,715,838]
["DRAP ALGARVE",109,300,534,626]
["DRACA AÇORES",717,1451,2041,2263]
["DRADR MADEIRA ",543,1409,2136,2373]
["CNA",1385,4609,8024,9089]
["AJAP",2683,7354,11793,13411]
["CNJ",121,282,402,435]
["CAP",7920,23417,39890,44755]
["CONFAGRI",8279,25352,41171,45522]
["IFAP",2,9,20,26]
[null,{"$f":"SUM(B7:B19)","v":24869},{"$f":"SUM(C7:C19)","v":72465},{"$f":"SUM(D7:D19)","v":119498},{"$f":"SUM(E7:E19)","v":134023}]

{"sheet":"GRÁFICO25","index":32,"n_rows":1,"n_cols":27,"rows_kept":1,"cut":false,"hidden":false,"merged":[]}
[null,null,null,null,null,null,null,null,null,null,null,null,null,null,null,null,null,null,null,null,null,null,null,null,null,null,"GRÁFICO 25 - DISTRIBUIÇÃO DO ATENDIMENTO DO PARCELÁRIO, POR ENTIDADE (ACUMULADO) - PU2017"]

{"sheet":"QUADRO16","index":33,"n_rows":20,"n_cols":6,"rows_kept":20,"cut":false,"hidden":false,"merged":[[0,0,0,5],[3,0,5,0],[3,1,3,5],[4,5,5,5],[4,1,4,2],[4,3,4,4]]}
["QUADRO 16 - Nº DE ATENDIMENTOS DE PARCELÁRIO, NO PERÍODO DE CANDIDATURAS, POR ENTIDADE - PU2017/PU2017"]
[]
[]
["ENTIDADE","N.º DE ATENDIMENTOS PARCELÁRIO"]
[null,2017,null,2016,null,"VARIAÇÃO"]
[null,"N.º","%","N.º","%"]
["DRAP NORTE",{"$f":"+QUADRO15!E7","v":8807},{"$f":"+B7/$B$20","v":6.5712601568387513E-2},11071,{"$f":"+D7/$D$20","v":6.4013090564270389E-2},{"$f":"(+B7-D7)/D7","v":-0.2044982386414958}]
["DRAP CENTRO",{"$f":"+QUADRO15!E8","v":4039},{"$f":"+B8/$B$20","v":3.0136618341627931E-2},4953,{"$f":"+D8/$D$20","v":2.8638500367160261E-2},{"$f":"(+B8-D8)/D8","v":-0.18453462547950736}]
["DRAP LVT",{"$f":"+QUADRO15!E9","v":1839},1.3721525409817718E-2,2153,1.2448756569855854E-2,-0.14584300975383185]
["DRAP ALENTEJO",{"$f":"+QUADRO15!E10","v":838},6.2526581258440716E-3,1095,6.3313462350172598E-3,-0.23470319634703196]
["DRAP ALGARVE",{"$f":"+QUADRO15!E11","v":626},4.6708400796878144E-3,796,4.6025128795193961E-3,-0.21356783919597991]
["DRACA AÇORES",{"$f":"+QUADRO15!E12","v":2263},1.6885161502130232E-2,5108,2.9534718327368183E-2,-0.55696945967110412]
["DRADR MADEIRA",{"$f":"+QUADRO15!E13","v":2373},1.7705916148720743E-2,3191,1.8450525877570845E-2,-0.25634597304920087]
["CNA",{"$f":"+QUADRO15!E14","v":9089},6.7816718026010456E-2,11777,6.8095218821733569E-2,-0.22824148764541055]
["AJAP",{"$f":"+QUADRO15!E15","v":13411},0.10006491423113943,17263,9.9815552561737853E-2,-0.22313618722122458]
["CNJ",{"$f":"+QUADRO15!E16","v":435},3.2457115569715644E-3,766,4.4290513388339919E-3,-0.43211488250652741]
["CAP",{"$f":"+QUADRO15!E17","v":44755},0.33393522007416637,61484,0.35550364558338005,-0.27208704703662739]
["CONFAGRI",{"$f":"+QUADRO15!E18","v":45522},0.33965811838266569,53248,0.30788267061388042,-0.14509465144230768]
["IFAP",{"$f":"+QUADRO15!E19","v":26},1.9399655283048432E-4,44,2.5441025967192643E-4,-0.40909090909090912]
[null,{"$f":"+QUADRO15!E20","v":134023},{"$f":"SUM(C7:C19)","v":1},172949,{"$f":"SUM(E7:E19)","v":0.99999999999999989},-0.22507213109066834]

{"sheet":"QUADRO17","index":34,"n_rows":6,"n_cols":27,"rows_kept":6,"cut":false,"hidden":false,"merged":[[0,0,1,4]]}
["QUADRO 17 - COMPARAÇÃO DO Nº DE ATENDIMENTOS DE PARCELÁRIO, NO PERÍODO DE CANDIDATURAS - PU2017/PU2016",null,null,null,null,null,null,null,null,null,null,null,null,null,null,null,null,null,null,null,null,null,null,null,null,null,"GRÁFICO 26 - COMPARAÇÃO DO N.º DE ATENDIMENTOS DO PARCELÁRIO - PU2017/PU2016"]
[]
[]
["Campanha","Até 28-02-2016","Até 27-03-2016 e 26-03-2017","Até 24-04-2016 e 30-04-2017","Até 29-05-2016 e 28-05-2017","Até 26-06-2016 e 26-06-2017","Até 11-07-2016"]
["2016",8400,32021,70031,116481,126321,128264]
["2017",null,{"$f":"+QUADRO15!B20","v":24869},{"$f":"+QUADRO15!C20","v":72465},{"$f":"+QUADRO15!D20","v":119498},{"$f":"+QUADRO15!E20","v":134023}]

{"sheet":"QUADRO18","index":35,"n_rows":22,"n_cols":14,"rows_kept":22,"cut":false,"hidden":false,"merged":[[12,0,16,0],[18,0,18,1],[0,0,0,13],[3,7,4,7],[3,8,3,10],[3,11,4,11],[3,12,4,12],[3,13,4,13],[3,0,4,1],[3,2,4,2],[3,3,4,3],[3,4,4,4],[3,5,4,5],[3,6,4,6],[5,0,9,0]]}
["QUADRO 18 - TIPOS DE AÇÕES EFETUADAS NAS PARCELAS (ACUMULADO) - PU2017"]
[]
[]
["                                         Ações\n\n      Entidade",null,"Acrescentar Parcela","Correção atributos alfanuméricos","Eliminar Parcela","Matar Parcela","Nova Parcela","Alterar Limites de Parcelas","Alterar Ocupação do Solo",null,null,"Total de Ações Realizadas","Total de Parcelas Alteradas","Nº de Requerentes com Ação"]
[null,null,null,null,null,null,null,null,"Alterar Ocupação ","Alterar Elegibilidade","Total"]
["DRAP","NORTE",3684,3757,4741,203,1501,2776,1013,2160,3104,19766,11321,4380]
[null,"CENTRO",2126,2457,2817,125,1086,1618,166,1929,2081,12310,6914,2698]
[null,"LISBOA  E VALE DO TEJO",895,1170,1056,138,585,648,130,496,610,5102,2695,1148]
[null,"ALENTEJO",832,541,829,78,154,293,6,434,436,3163,1719,485]
[null,"ALGARVE",572,456,633,38,314,221,4,270,273,2507,1290,370]
[null,"DRACA AÇORES",1099,626,1228,83,279,517,0,435,435,4267,2470,1036]
[null,"DRADR MADEIRA",493,790,741,9,393,356,315,273,517,3299,1849,1205]
["ORGANIZAÇÕES DE AGRICULTORES","CNA",4793,3994,5673,203,1786,2808,4334,2560,5982,25239,14005,4385]
[null,"AJAP",7533,5587,8884,336,2089,3328,7860,3404,9783,37540,20602,6049]
[null,"CNJ",360,290,569,2,128,95,191,52,219,1663,958,226]
[null,"CAP",25438,24630,31130,1044,9702,10986,23590,11975,29886,132816,71544,20520]
[null,"CONFAGRI",20468,18856,25352,911,8319,13322,21597,14763,31762,118990,66624,20919]
[null,"IFAP",1,2,4,0,1,2,0,3,3,13,11,9]
["TOTAL",null,67750,62759,83000,3170,26337,36692,59104,38655,84637,366675,197406,60305]
[]
["Nota:"]
["Estão excluídas as acções que resultam de visitas de campo."]

{"sheet":"QUADRO19","index":36,"n_rows":13,"n_cols":6,"rows_kept":13,"cut":false,"hidden":false,"merged":[[12,0,12,1],[0,0,1,5],[7,0,7,1],[3,0,4,1],[3,2,4,2],[3,3,4,3],[3,4,4,4],[3,5,4,5],[10,0,10,1],[11,0,11,1],[6,0,6,1],[8,0,8,1],[9,0,9,1],[5,0,5,1]]}
["QUADRO 19 - VISITAS DE CAMPO PARCELÁRIO NO PERÍODO DE 01-03-2017 A 26-06-2017 (ACUMULADO)"]
[]
[]
["ENTIDADE",null,"Marcadas","Realizadas","Pendentes","Anuladas"]
[]
["DRAP NORTE",null,3900,3595,19,286]
["DRAP CENTRO",null,1229,1021,96,112]
["DRAP LISBOA  E VALE DO TEJO",null,476,408,11,57]
["DRAP ALENTEJO",null,1242,621,345,276]
["DRAP ALGARVE",null,428,351,9,68]
["DRACA AÇORES",null,32,24,4,4]
["DRADR MADEIRA",null,537,446,41,50]
["TOTAL",null,7844,6466,525,853]

{"sheet":"QUADRO20E21","index":37,"n_rows":27,"n_cols":3,"rows_kept":27,"cut":false,"hidden":false,"merged":[[3,2,3,3],[4,2,4,3],[0,0,1,3],[13,0,14,1]]}
["QUADRO 20 - UTILIZADORES E FORMULÁRIOS IB (ACUMULADO), NO PERÍODO DE CANDIDATURAS - PU2017"]
[]
[]
[null,null,"FORMULÁRIOS IB"]
[null,"UTILIZADORES","SUBMETIDOS"]
["Total até 26-06-2017",7451,65891]
[]
["Nota:"]
["O dia de início do período considerado na análise foi 01-03-2017"]
["O total de utilizadores corresponde à contagem dos distintos utilizadores que acederam ao sistema."]
[]
[]
[]
["QUADRO 21 - FORMULÁRIOS IB TIPO DE ALTERAÇÕES (ACUMULADO) - PU2017"]
[]
[]
[null,"FORMULÁRIOS IB"]
["Total até 26-06-2017",65891]
["IB com Alteração de NIB",13820]
["IB com Alteração de NIF/NIPC",7]
["IB Novo*",8239]
["Outros",48993]
[]
["Nota:"]
["O dia de início do período considerado na análise foi 01-03-2017"]
[]
["*Criados por utilizadores externos"]

{"sheet":"QUADRO22","index":38,"n_rows":27,"n_cols":5,"rows_kept":27,"cut":false,"hidden":false,"merged":[[0,0,1,4],[3,1,3,4],[4,0,5,0],[4,1,5,1],[4,2,5,2],[4,3,5,3],[4,4,5,4]]}
["QUADRO 22 - FORMULÁRIOS IB POR ENTIDADE (ACUMULADO), NO PERÍODO DE CANDIDATURAS PU2017"]
[]
[]
[null,"FORMULÁRIOS IB"]
["ENTIDADE","SUBMETIDOS      [1]","%          [2]","DESMATERIAL.    [3]","%          [4]=[3]/[1]*100"]
[]
["Total até 26-06-2017",65891,100,20797,31.562732391373633]
["Beneficiário IFAP",5618,8.5262023645110858,5617,99.982200071199713]
["Norte - DRAP",1082,1.6421059021717685,9,0.83179297597042512]
["Centro - DRAP",1041,1.5798819262114703,12,1.1527377521613833]
["Lisboa e Vale do Tejo - DRAP",478,0.72544050022006035,3,0.62761506276150625]
["Alentejo - DRAP",284,0.43101485787133298,15,5.28169014084507]
["Algarve - DRAP",230,0.34906132855776967,0,0]
["Açores - DRACA",2545,3.8624394833892337,77,3.0255402750491158]
["Madeira - DRADR",4785,7.2619932919518595,104,2.1734587251828632]
["CAP",17618,26.738097767525154,4792,27.199455102735836]
["CONFAGRI",22815,34.625366134980503,7148,31.330265176419019]
["AJAP",5221,7.9236921582613711,1780,34.093085615782414]
["CNA",2823,4.2843483935590596,1120,39.674105561459442]
["CNJ",316,0.47957991227937047,87,27.531645569620256]
["AG - MAR2020",10,1.5176579502511724E-2,3,30]
["Federação Minha Terra",79,0.11989497806984262,30,37.974683544303801]
["DGAV",184,0.2792490628462157,0,0]
["IFAP",762,1.1564553580913932,0,0]
[]
["Nota:"]
["O dia de início do período considerado na análise foi 01-03-2017"]